{"text_format":"1","workbook":"xlsx","n_sheets":2,"sheets":["الصفوف الأولى","المقياس المتدرج"],"not_rendered":{"charts":0,"images":0,"macros":1,"external_links":0,"defined_names":0,"comments":0,"pivot_tables":0},"unopened":[],"bounds":{"document_bytes":16777216,"sheet_cells":100000,"rows_first":2000,"rows_last":500,"rows_between":2000,"halvings":0,"cell_chars":16384,"cell_head_chars":4096},"cells_cut":0,"cells_raw":0,"read":"whole","date_system":"1900"}

{"sheet":"الصفوف الأولى","index":0,"n_rows":1500,"n_cols":24,"rows_kept":1500,"cut":false,"hidden":false,"merged":[[1,13,2,15],[4,22,5,23],[8,23,9,23],[10,23,11,23],[12,23,13,23],[12,20,13,20],[12,21,13,21],[4,17,5,17],[4,18,5,18],[4,19,5,19],[4,20,5,20],[4,21,5,21],[8,17,9,17],[8,18,9,18],[8,19,9,19],[8,20,9,20],[14,23,15,23],[16,23,17,23],[16,22,17,22],[8,22,9,22],[10,22,11,22],[12,22,13,22],[14,22,15,22],[8,21,9,21],[16,17,17,17],[16,18,17,18],[16,19,17,19],[16,20,17,20],[16,21,17,21],[0,2,0,7],[0,19,0,22],[3,22,3,23],[14,17,15,17],[14,18,15,18],[14,19,15,19],[14,20,15,20],[14,21,15,21],[10,17,11,17],[10,18,11,18],[10,19,11,19],[10,20,11,20],[10,21,11,21],[12,17,13,17],[12,18,13,18],[12,19,13,19]]}
["محافظة",null,"رصد درجات الاختبار البعدي للصفوف الأولى 2016",null,null,null,null,null,null,null,null,null,null,null,null,null,null,"محافظة ",null,"نتيجة الاختبار البعدي للصفوف الأولى 2016"]
["مديرية التربية والتعليم ",null,null,null,null,null,null,null,null,null,null,null,null,"المطلوب عمله",null,null,null,"مديرية التربية والتعليم "]
["إدارة ",null,null,null,"مدرسة",null,null,null,null,null,null,null,null,null,null,null,null,"إدارة ",null,null,"مدرسة"]
["م","اسم التلميذ","النوع","الصف","س1\n10","س2\n20","س3\n20","س4\n20","س5\n20","المجموع\n100","المقياس","اللون",null,"المجموع\n100","المقياس","اللون",null,"إجمالي التلاميذ","عدد الناجحين ","عدد الراسبين","نسبة النجاح ","نسبة الرسوب","ملاحظات"]
[1,"شهد مصطفى صبحي جماد","أنثى","الأول",20,20,20,20,20,{"$f":"SUM(E5:I5)","v":100},{"$f":"Expectations(J5)","v":"يفوق التوقعات"},null,null,"100 من 85  إلى","يفوق التوقعات",null,"أزرق",{"$f":"COUNT(A5:A504,\"*\")","v":48},{"$f":"COUNTIF(J5:J54,\">=10\")","v":8},{"$f":"R5-S5","v":40},{"$f":"S5/R5","v":0.16666666666666666},{"$f":"T5/R5","v":0.83333333333333337}]
[2,"جمال وليد النجار","ذكر","الأول",2,5,6,4,1,{"$f":"SUM(E6:I6)","v":18},"أقل من المتوقع",null,null,"  من 65  إلى أقل من  85","يلبى التوقعات",null,"أخضر"]
[3,"ملك محمد كمال الصادق","أنثى","الأول",15,12,14,13,18,72,"يلبى التوقعات",null,null,"  من 50  إلى أقل من 60","يلبى التوقعات أحيانا",null,"أصفر"]
[4,"ياسمين محمد عبد العزيز","أنثى","الأول",10,5,2,3,2,22,"أقل من المتوقع",null,null,"  من 1  إلى أقل من 50","أقل من المتوقع",null,"أحمر"]
[5,"صفا هشام محروس جبر","أنثى","الأول",6,5,6,6,5,28,"أقل من المتوقع",null,null,null,null,null,null,"عدد التلاميذ","ذكر","انثى","المجموع","عدد الناجحين","عدد الراسبين","نسبة النجاح"]
[6,"ابراهيم سامح ابراهيم مصيلحي ","ذكر","الأول",1,20,0,0,0,21,"أقل من المتوقع"]
[7,"السيد مصطفى السيد","ذكر","الأول",12,12,12,12,12,60,"يلبى التوقعات أحيانا",null,null,null,null,null,null,"الأول",{"$f":"COUNTIFS($C$5:$C$504,S9,$D$5:$D$504,R11)","v":6},{"$f":"COUNTIFS($C$5:$C$504,T9,$D$5:$D$504,R11)","v":4},{"$f":"SUM(S11:T12)","v":10},{"$f":"COUNTIFS($J$5:$J$1500,\">9\",$D$5:$D$1500,R11)","v":8},{"$f":"U11-V11","v":2},{"$f":"V11/U11","v":0.8}]
[8,"ايمن فوزي محروس جبر","ذكر","الأول",9,2,5,4,8,7,"أقل من المتوقع"]
[9,"محمد رامي مسعد ","ذكر","الأول",20,15,10,10,30,{"$f":"SUM(E13:I13)","v":85},"يفوق التوقعات",null,null,null,null,null,null,"الثانى",{"$f":"COUNTIFS($C$5:$C$504,S9,$D$5:$D$504,R13)","v":15},{"$f":"COUNTIFS($C$5:$C$504,T9,$D$5:$D$504,R13)","v":5},{"$f":"SUM(S13:T14)","v":20},{"$f":"COUNTIFS($J$5:$J$1500,\">9\",$D$5:$D$1500,R13)","v":0},{"$f":"U13-V13","v":20},{"$f":"V13/U13","v":0}]
[10,"محمد عمر محمد  فرج","ذكر","الأول",null,null,null,null,null,0,"أقل من المتوقع"]
[11,"ملك صالح السيد حسن عطية","انثى","الثانى",null,null,null,null,null,0,"أقل من المتوقع",null,null,null,null,null,null,"الثالث",{"$f":"COUNTIFS($C$5:$C$504,S9,$D$5:$D$504,R15)","v":12},{"$f":"COUNTIFS($C$5:$C$504,T9,$D$5:$D$504,R15)","v":6},{"$f":"SUM(S15:T16)","v":18},{"$f":"COUNTIFS($J$5:$J$1500,\">9\",$D$5:$D$1500,R15)","v":0},{"$f":"U15-V15","v":18},{"$f":"V15/U15","v":0}]
[12,"احمد كرم احمد","ذكر","الثانى",null,null,null,null,null,0,"أقل من المتوقع"]
[13,"ملك وليد احمد احمد","انثى","الثانى",null,null,null,null,null,0,"أقل من المتوقع",null,null,null,null,null,null,"المجموع الكلي",{"$f":"SUM(S11:S16)","v":33},{"$f":"SUM(T11:T16)","v":15},{"$f":"SUM(U11:U16)","v":48},{"$f":"SUM(V11:V16)","v":8},{"$f":"SUM(W11:W16)","v":40},{"$f":"V17/U17","v":0.16666666666666666}]
[14,"عبد السميع خالد عبد السميع","ذكر","الثانى",null,null,null,null,null,0,"أقل من المتوقع"]
[15,"عبد الرحمن عمرو","ذكر","الثانى",null,null,null,null,null,0,"أقل من المتوقع"]
[16,"محمد نبيل بكر","ذكر","الثانى",null,null,null,null,null,0,"أقل من المتوقع"]
[17,"ايمان محمد جمال عبد الحليم","انثى","الثانى",null,null,null,null,null,0,"أقل من المتوقع",null,null,null,null,null,null,"أملاه",null,"كتبه ",null,"منسق المدرسة"]
[18,"امنية عبد الحفيظ عبد الرازق","انثى","الثانى",null,null,null,null,null,0,"أقل من المتوقع"]
[19,"شهد احمد المكاوى ","انثى","الثانى",null,null,null,null,null,0,"أقل من المتوقع"]
[20,"محمد خالد رشاد الجزار","ذكر","الثانى",null,null,null,null,null,0,"أقل من المتوقع",null,null,null,null,null,null,"ش.ط",null,"معلم أول اللغة العربية"]
[21,"احمد رشدى وهبة","ذكر","الثانى",null,null,null,null,null,0,"أقل من المتوقع"]
[22,"احمد حسين عبد الله","ذكر","الثانى",null,null,null,null,null,0,"أقل من المتوقع",null,null,null,null,null,null,null,null,null,null,null,"يعتمد ، مدير المدرسة"]
[23,"مصطفى السيد الحسينى ","ذكر","الثانى",null,null,null,null,null,0,"أقل من المتوقع"]
[24,"رشاد محمود احمد محمد","ذكر","الثانى",null,null,null,null,null,0,"أقل من المتوقع"]
[25,"عبد الرحمن محمد كمال الصادق","ذكر","الثانى",null,null,null,null,null,0,"أقل من المتوقع"]
[26,"ابراهيم السيد صبحى الفارس","ذكر","الثانى",null,null,null,null,null,0,"أقل من المتوقع"]
[27,"باسم السيد عبد المعطى السيد ","ذكر","الثانى",null,null,null,null,null,0,"أقل من المتوقع"]
[28,"محمود احمد ابراهيم","ذكر","الثانى",null,null,null,null,null,0,"أقل من المتوقع"]
[29,"محمد عبد الرازق عبد المنعم","ذكر","الثانى",null,null,null,null,null,0,"أقل من المتوقع"]
[30,"على اشرف عباس","ذكر","الثانى",null,null,null,null,null,0,"أقل من المتوقع"]
[31,"الاء محمد عبد الطيف ","أنثى","الثالث",null,null,null,null,null,0,"أقل من المتوقع"]
[32,"حبيبة محمد عبد الله مرسى ","أنثى","الثالث",null,null,null,null,null,0,"أقل من المتوقع"]
[33,"رودينة محمود طة","أنثى","الثالث",null,null,null,null,null,0,"أقل من المتوقع"]
[34,"هدير احمد مكاوى","أنثى","الثالث",null,null,null,null,null,0,"أقل من المتوقع"]
[35,"احمد سامح ابراهيم","ذكر","الثالث",null,null,null,null,null,0,"أقل من المتوقع"]
[36,"احمد عصام المرادى","ذكر","الثالث",null,null,null,null,null,0,"أقل من المتوقع"]
[37,"احمد محمد سعيد المرادى","ذكر","الثالث",null,null,null,null,null,0,"أقل من المتوقع"]
[38,"زياد محمد زايد","ذكر","الثالث",null,null,null,null,null,0,"أقل من المتوقع"]
[39,"على محمد على عبد الجواد","ذكر","الثالث",null,null,null,null,null,0,"أقل من المتوقع"]
[40,"عمرو محمد ابراهيم","ذكر","الثالث",null,null,null,null,null,0,"أقل من المتوقع"]
[41,"محمد جمعة عبد الغفار","ذكر","الثالث",null,null,null,null,null,0,"أقل من المتوقع"]
[42,"يوسف محمد وافى","ذكر","الثالث",null,null,null,null,null,0,"أقل من المتوقع"]
[43,"ملك عبد الله فراج","أنثى","الثالث",null,null,null,null,null,0,"أقل من المتوقع"]
[44,"ايثار حمدى عبد الستار","أنثى","الثالث",null,null,null,null,null,0,"أقل من المتوقع"]
[45,"عاطف محمد الكيلانى","ذكر","الثالث",null,null,null,null,null,0,"أقل من المتوقع"]
[46,"سعد محمد سعد محمد سويلم","ذكر","الثالث",null,null,null,null,null,0,"أقل من المتوقع"]
[47,"يوسف محمود","ذكر","الثالث",null,null,null,null,null,0,"أقل من المتوقع"]
[48,"فهد محمد عبد الحليم","ذكر","الثالث",null,null,null,null,null,0,"أقل من المتوقع"]
[null,null,null,null,null,null,null,null,null,0,"أقل من المتوقع"]
[null,null,null,null,null,null,null,null,null,0,"أقل من المتوقع"]
[null,null,null,null,null,null,null,null,null,0,"أقل من المتوقع"]
[null,null,null,null,null,null,null,null,null,0,"أقل من المتوقع"]
[null,null,null,null,null,null,null,null,null,0,"أقل من المتوقع"]
[null,null,null,null,null,null,null,null,null,0,"أقل من المتوقع"]
[null,null,null,null,null,null,null,null,null,0,"أقل من المتوقع"]
[null,null,null,null,null,null,null,null,null,0,"أقل من المتوقع"]
[null,null,null,null,null,null,null,null,null,0,"أقل من المتوقع"]
[null,null,null,null,null,null,null,null,null,0,"أقل من المتوقع"]
[null,null,null,null,null,null,null,null,null,0,"أقل من المتوقع"]
[null,null,null,null,null,null,null,null,null,0,"أقل من المتوقع"]
[null,null,null,null,null,null,null,null,null,0,"أقل من المتوقع"]
[null,null,null,null,null,null,null,null,null,0,"أقل من المتوقع"]
[null,null,null,null,null,null,null,null,null,0,"أقل من المتوقع"]
[null,null,null,null,null,null,null,null,null,0,"أقل من المتوقع"]
[null,null,null,null,null,null,null,null,null,0,{"$f":"Expectations(J69)","v":"أقل من المتوقع"}]
[null,null,null,null,null,null,null,null,null,{"$f":"SUM(E70:I70)","v":0},"أقل من المتوقع"]
[null,null,null,null,null,null,null,null,null,0,"أقل من المتوقع"]
[null,null,null,null,null,null,null,null,null,0,"أقل من المتوقع"]
[null,null,null,null,null,null,null,null,null,0,"أقل من المتوقع"]
[null,null,null,null,null,null,null,null,null,0,"أقل من المتوقع"]
[null,null,null,null,null,null,null,null,null,0,"أقل من المتوقع"]
[null,null,null,null,null,null,null,null,null,0,"أقل من المتوقع"]
[null,null,null,null,null,null,null,null,null,0,"أقل من المتوقع"]
[null,null,null,null,null,null,null,null,null,0,"أقل من المتوقع"]
[null,null,null,null,null,null,null,null,null,0,"أقل من المتوقع"]
[null,null,null,null,null,null,null,null,null,0,"أقل من المتوقع"]
[null,null,null,null,null,null,null,null,null,0,"أقل من المتوقع"]
[null,null,null,null,null,null,null,null,null,0,"أقل من المتوقع"]
[null,null,null,null,null,null,null,null,null,0,"أقل من المتوقع"]
[null,null,null,null,null,null,null,null,null,0,"أقل من المتوقع"]
[null,null,null,null,null,null,null,null,null,0,"أقل من المتوقع"]
[null,null,null,null,null,null,null,null,null,0,"أقل من المتوقع"]
[null,null,null,null,null,null,null,null,null,0,"أقل من المتوقع"]
[null,null,null,null,null,null,null,null,null,0,"أقل من المتوقع"]
[null,null,null,null,null,null,null,null,null,0,"أقل من المتوقع"]
[null,null,null,null,null,null,null,null,null,0,"أقل من المتوقع"]
[null,null,null,null,null,null,null,null,null,0,"أقل من المتوقع"]
[null,null,null,null,null,null,null,null,null,0,"أقل من المتوقع"]
[null,null,null,null,null,null,null,null,null,0,"أقل من المتوقع"]
[null,null,null,null,null,null,null,null,null,0,"أقل من المتوقع"]
[null,null,null,null,null,null,null,null,null,0,"أقل من المتوقع"]
[null,null,null,null,null,null,null,null,null,0,"أقل من المتوقع"]
[null,null,null,null,null,null,null,null,null,0,"أقل من المتوقع"]
[null,null,null,null,null,null,null,null,null,0,"أقل من المتوقع"]
[null,null,null,null,null,null,null,null,null,0,"أقل من المتوقع"]
[null,null,null,null,null,null,null,null,null,0,"أقل من المتوقع"]
[null,null,null,null,null,null,null,null,null,0,"أقل من المتوقع"]
[null,null,null,null,null,null,null,null,null,0,"أقل من المتوقع"]
[null,null,null,null,null,null,null,null,null,0,"أقل من المتوقع"]
[null,null,null,null,null,null,null,null,null,0,"أقل من المتوقع"]
[null,null,null,null,null,null,null,null,null,0,"أقل من المتوقع"]
[null,null,null,null,null,null,null,null,null,0,"أقل من المتوقع"]
[null,null,null,null,null,null,null,null,null,0,"أقل من المتوقع"]
[null,null,null,null,null,null,null,null,null,0,"أقل من المتوقع"]
[null,null,null,null,null,null,null,null,null,0,"أقل من المتوقع"]
[null,null,null,null,null,null,null,null,null,0,"أقل من المتوقع"]
[null,null,null,null,null,null,null,null,null,0,"أقل من المتوقع"]
[null,null,null,null,null,null,null,null,null,0,"أقل من المتوقع"]
[null,null,null,null,null,null,null,null,null,0,"أقل من المتوقع"]
[null,null,null,null,null,null,null,null,null,0,"أقل من المتوقع"]
[null,null,null,null,null,null,null,null,null,0,"أقل من المتوقع"]
[null,null,null,null,null,null,null,null,null,0,"أقل من المتوقع"]
[null,null,null,null,null,null,null,null,null,0,"أقل من المتوقع"]
[null,null,null,null,null,null,null,null,null,0,"أقل من المتوقع"]
[null,null,null,null,null,null,null,null,null,0,"أقل من المتوقع"]
[null,null,null,null,null,null,null,null,null,0,"أقل من المتوقع"]
[null,null,null,null,null,null,null,null,null,0,"أقل من المتوقع"]
[null,null,null,null,null,null,null,null,null,0,"أقل من المتوقع"]
[null,null,null,null,null,null,null,null,null,0,"أقل من المتوقع"]
[null,null,null,null,null,null,null,null,null,0,"أقل من المتوقع"]
[null,null,null,null,null,null,null,null,null,0,"أقل من المتوقع"]
[null,null,null,null,null,null,null,null,null,0,"أقل من المتوقع"]
[null,null,null,null,null,null,null,null,null,0,"أقل من المتوقع"]
[null,null,null,null,null,null,null,null,null,0,"أقل من المتوقع"]
[null,null,null,null,null,null,null,null,null,0,"أقل من المتوقع"]
[null,null,null,null,null,null,null,null,null,0,"أقل من المتوقع"]
[null,null,null,null,null,null,null,null,null,0,"أقل من المتوقع"]
[null,null,null,null,null,null,null,null,null,0,"أقل من المتوقع"]
[null,null,null,null,null,null,null,null,null,0,{"$f":"Expectations(J133)","v":"أقل من المتوقع"}]
[null,null,null,null,null,null,null,null,null,{"$f":"SUM(E134:I134)","v":0},"أقل من المتوقع"]
[null,null,null,null,null,null,null,null,null,0,"أقل من المتوقع"]
[null,null,null,null,null,null,null,null,null,0,"أقل من المتوقع"]
[null,null,null,null,null,null,null,null,null,0,"أقل من المتوقع"]
[null,null,null,null,null,null,null,null,null,0,"أقل من المتوقع"]
[null,null,null,null,null,null,null,null,null,0,"أقل من المتوقع"]
[null,null,null,null,null,null,null,null,null,0,"أقل من المتوقع"]
[null,null,null,null,null,null,null,null,null,0,"أقل من المتوقع"]
[null,null,null,null,null,null,null,null,null,0,"أقل من المتوقع"]
[null,null,null,null,null,null,null,null,null,0,"أقل من المتوقع"]
[null,null,null,null,null,null,null,null,null,0,"أقل من المتوقع"]
[null,null,null,null,null,null,null,null,null,0,"أقل من المتوقع"]
[null,null,null,null,null,null,null,null,null,0,"أقل من المتوقع"]
[null,null,null,null,null,null,null,null,null,0,"أقل من المتوقع"]
[null,null,null,null,null,null,null,null,null,0,"أقل من المتوقع"]
[null,null,null,null,null,null,null,null,null,0,"أقل من المتوقع"]
[null,null,null,null,null,null,null,null,null,0,"أقل من المتوقع"]
[null,null,null,null,null,null,null,null,null,0,"أقل من المتوقع"]
[null,null,null,null,null,null,null,null,null,0,"أقل من المتوقع"]
[null,null,null,null,null,null,null,null,null,0,"أقل من المتوقع"]
[null,null,null,null,null,null,null,null,null,0,"أقل من المتوقع"]
[null,null,null,null,null,null,null,null,null,0,"أقل من المتوقع"]
[null,null,null,null,null,null,null,null,null,0,"أقل من المتوقع"]
[null,null,null,null,null,null,null,null,null,0,"أقل من المتوقع"]
[null,null,null,null,null,null,null,null,null,0,"أقل من المتوقع"]
[null,null,null,null,null,null,null,null,null,0,"أقل من المتوقع"]
[null,null,null,null,null,null,null,null,null,0,"أقل من المتوقع"]
[null,null,null,null,null,null,null,null,null,0,"أقل من المتوقع"]
[null,null,null,null,null,null,null,null,null,0,"أقل من المتوقع"]
[null,null,null,null,null,null,null,null,null,0,"أقل من المتوقع"]
[null,null,null,null,null,null,null,null,null,0,"أقل من المتوقع"]
[null,null,null,null,null,null,null,null,null,0,"أقل من المتوقع"]
[null,null,null,null,null,null,null,null,null,0,"أقل من المتوقع"]
[null,null,null,null,null,null,null,null,null,0,"أقل من المتوقع"]
[null,null,null,null,null,null,null,null,null,0,"أقل من المتوقع"]
[null,null,null,null,null,null,null,null,null,0,"أقل من المتوقع"]
[null,null,null,null,null,null,null,null,null,0,"أقل من المتوقع"]
[null,null,null,null,null,null,null,null,null,0,"أقل من المتوقع"]
[null,null,null,null,null,null,null,null,null,0,"أقل من المتوقع"]
[null,null,null,null,null,null,null,null,null,0,"أقل من المتوقع"]
[null,null,null,null,null,null,null,null,null,0,"أقل من المتوقع"]
[null,null,null,null,null,null,null,null,null,0,"أقل من المتوقع"]
[null,null,null,null,null,null,null,null,null,0,"أقل من المتوقع"]
[null,null,null,null,null,null,null,null,null,0,"أقل من المتوقع"]
[null,null,null,null,null,null,null,null,null,0,"أقل من المتوقع"]
[null,null,null,null,null,null,null,null,null,0,"أقل من المتوقع"]
[null,null,null,null,null,null,null,null,null,0,"أقل من المتوقع"]
[null,null,null,null,null,null,null,null,null,0,"أقل من المتوقع"]
[null,null,null,null,null,null,null,null,null,0,"أقل من المتوقع"]
[null,null,null,null,null,null,null,null,null,0,"أقل من المتوقع"]
[null,null,null,null,null,null,null,null,null,0,"أقل من المتوقع"]
[null,null,null,null,null,null,null,null,null,0,"أقل من المتوقع"]
[null,null,null,null,null,null,null,null,null,0,"أقل من المتوقع"]
[null,null,null,null,null,null,null,null,null,0,"أقل من المتوقع"]
[null,null,null,null,null,null,null,null,null,0,"أقل من المتوقع"]
[null,null,null,null,null,null,null,null,null,0,"أقل من المتوقع"]
[null,null,null,null,null,null,null,null,null,0,"أقل من المتوقع"]
[null,null,null,null,null,null,null,null,null,0,"أقل من المتوقع"]
[null,null,null,null,null,null,null,null,null,0,"أقل من المتوقع"]
[null,null,null,null,null,null,null,null,null,0,"أقل من المتوقع"]
[null,null,null,null,null,null,null,null,null,0,"أقل من المتوقع"]
[null,null,null,null,null,null,null,null,null,0,"أقل من المتوقع"]
[null,null,null,null,null,null,null,null,null,0,"أقل من المتوقع"]
[null,null,null,null,null,null,null,null,null,0,{"$f":"Expectations(J197)","v":"أقل من المتوقع"}]
[null,null,null,null,null,null,null,null,null,{"$f":"SUM(E198:I198)","v":0},"أقل من المتوقع"]
[null,null,null,null,null,null,null,null,null,0,"أقل من المتوقع"]
[null,null,null,null,null,null,null,null,null,0,"أقل من المتوقع"]
[null,null,null,null,null,null,null,null,null,0,"أقل من المتوقع"]
[null,null,null,null,null,null,null,null,null,0,"أقل من المتوقع"]
[null,null,null,null,null,null,null,null,null,0,"أقل من المتوقع"]
[null,null,null,null,null,null,null,null,null,0,"أقل من المتوقع"]
[null,null,null,null,null,null,null,null,null,0,"أقل من المتوقع"]
[null,null,null,null,null,null,null,null,null,0,"أقل من المتوقع"]
[null,null,null,null,null,null,null,null,null,0,"أقل من المتوقع"]
[null,null,null,null,null,null,null,null,null,0,"أقل من المتوقع"]
[null,null,null,null,null,null,null,null,null,0,"أقل من المتوقع"]
[null,null,null,null,null,null,null,null,null,0,"أقل من المتوقع"]
[null,null,null,null,null,null,null,null,null,0,"أقل من المتوقع"]
[null,null,null,null,null,null,null,null,null,0,"أقل من المتوقع"]
[null,null,null,null,null,null,null,null,null,0,"أقل من المتوقع"]
[null,null,null,null,null,null,null,null,null,0,"أقل من المتوقع"]
[null,null,null,null,null,null,null,null,null,0,"أقل من المتوقع"]
[null,null,null,null,null,null,null,null,null,0,"أقل من المتوقع"]
[null,null,null,null,null,null,null,null,null,0,"أقل من المتوقع"]
[null,null,null,null,null,null,null,null,null,0,"أقل من المتوقع"]
[null,null,null,null,null,null,null,null,null,0,"أقل من المتوقع"]
[null,null,null,null,null,null,null,null,null,0,"أقل من المتوقع"]
[null,null,null,null,null,null,null,null,null,0,"أقل من المتوقع"]
[null,null,null,null,null,null,null,null,null,0,"أقل من المتوقع"]
[null,null,null,null,null,null,null,null,null,0,"أقل من المتوقع"]
[null,null,null,null,null,null,null,null,null,0,"أقل من المتوقع"]
[null,null,null,null,null,null,null,null,null,0,"أقل من المتوقع"]
[null,null,null,null,null,null,null,null,null,0,"أقل من المتوقع"]
[null,null,null,null,null,null,null,null,null,0,"أقل من المتوقع"]
[null,null,null,null,null,null,null,null,null,0,"أقل من المتوقع"]
[null,null,null,null,null,null,null,null,null,0,"أقل من المتوقع"]
[null,null,null,null,null,null,null,null,null,0,"أقل من المتوقع"]
[null,null,null,null,null,null,null,null,null,0,"أقل من المتوقع"]
[null,null,null,null,null,null,null,null,null,0,"أقل من المتوقع"]
[null,null,null,null,null,null,null,null,null,0,"أقل من المتوقع"]
[null,null,null,null,null,null,null,null,null,0,"أقل من المتوقع"]
[null,null,null,null,null,null,null,null,null,0,"أقل من المتوقع"]
[null,null,null,null,null,null,null,null,null,0,"أقل من المتوقع"]
[null,null,null,null,null,null,null,null,null,0,"أقل من المتوقع"]
[null,null,null,null,null,null,null,null,null,0,"أقل من المتوقع"]
[null,null,null,null,null,null,null,null,null,0,"أقل من المتوقع"]
[null,null,null,null,null,null,null,null,null,0,"أقل من المتوقع"]
[null,null,null,null,null,null,null,null,null,0,"أقل من المتوقع"]
[null,null,null,null,null,null,null,null,null,0,"أقل من المتوقع"]
[null,null,null,null,null,null,null,null,null,0,"أقل من المتوقع"]
[null,null,null,null,null,null,null,null,null,0,"أقل من المتوقع"]
[null,null,null,null,null,null,null,null,null,0,"أقل من المتوقع"]
[null,null,null,null,null,null,null,null,null,0,"أقل من المتوقع"]
[null,null,null,null,null,null,null,null,null,0,"أقل من المتوقع"]
[null,null,null,null,null,null,null,null,null,0,"أقل من المتوقع"]
[null,null,null,null,null,null,null,null,null,0,"أقل من المتوقع"]
[null,null,null,null,null,null,null,null,null,0,"أقل من المتوقع"]
[null,null,null,null,null,null,null,null,null,0,"أقل من المتوقع"]
[null,null,null,null,null,null,null,null,null,0,"أقل من المتوقع"]
[null,null,null,null,null,null,null,null,null,0,"أقل من المتوقع"]
[null,null,null,null,null,null,null,null,null,0,"أقل من المتوقع"]
[null,null,null,null,null,null,null,null,null,0,"أقل من المتوقع"]
[null,null,null,null,null,null,null,null,null,0,"أقل من المتوقع"]
[null,null,null,null,null,null,null,null,null,0,"أقل من المتوقع"]
[null,null,null,null,null,null,null,null,null,0,"أقل من المتوقع"]
[null,null,null,null,null,null,null,null,null,0,"أقل من المتوقع"]
[null,null,null,null,null,null,null,null,null,0,"أقل من المتوقع"]
[null,null,null,null,null,null,null,null,null,0,{"$f":"Expectations(J261)","v":"أقل من المتوقع"}]
[null,null,null,null,null,null,null,null,null,{"$f":"SUM(E262:I262)","v":0},"أقل من المتوقع"]
[null,null,null,null,null,null,null,null,null,0,"أقل من المتوقع"]
[null,null,null,null,null,null,null,null,null,0,"أقل من المتوقع"]
[null,null,null,null,null,null,null,null,null,0,"أقل من المتوقع"]
[null,null,null,null,null,null,null,null,null,0,"أقل من المتوقع"]
[null,null,null,null,null,null,null,null,null,0,"أقل من المتوقع"]
[null,null,null,null,null,null,null,null,null,0,"أقل من المتوقع"]
[null,null,null,null,null,null,null,null,null,0,"أقل من المتوقع"]
[null,null,null,null,null,null,null,null,null,0,"أقل من المتوقع"]
[null,null,null,null,null,null,null,null,null,0,"أقل من المتوقع"]
[null,null,null,null,null,null,null,null,null,0,"أقل من المتوقع"]
[null,null,null,null,null,null,null,null,null,0,"أقل من المتوقع"]
[null,null,null,null,null,null,null,null,null,0,"أقل من المتوقع"]
[null,null,null,null,null,null,null,null,null,0,"أقل من المتوقع"]
[null,null,null,null,null,null,null,null,null,0,"أقل من المتوقع"]
[null,null,null,null,null,null,null,null,null,0,"أقل من المتوقع"]
[null,null,null,null,null,null,null,null,null,0,"أقل من المتوقع"]
[null,null,null,null,null,null,null,null,null,0,"أقل من المتوقع"]
[null,null,null,null,null,null,null,null,null,0,"أقل من المتوقع"]
[null,null,null,null,null,null,null,null,null,0,"أقل من المتوقع"]
[null,null,null,null,null,null,null,null,null,0,"أقل من المتوقع"]
[null,null,null,null,null,null,null,null,null,0,"أقل من المتوقع"]
[null,null,null,null,null,null,null,null,null,0,"أقل من المتوقع"]
[null,null,null,null,null,null,null,null,null,0,"أقل من المتوقع"]
[null,null,null,null,null,null,null,null,null,0,"أقل من المتوقع"]
[null,null,null,null,null,null,null,null,null,0,"أقل من المتوقع"]
[null,null,null,null,null,null,null,null,null,0,"أقل من المتوقع"]
[null,null,null,null,null,null,null,null,null,0,"أقل من المتوقع"]
[null,null,null,null,null,null,null,null,null,0,"أقل من المتوقع"]
[null,null,null,null,null,null,null,null,null,0,"أقل من المتوقع"]
[null,null,null,null,null,null,null,null,null,0,"أقل من المتوقع"]
[null,null,null,null,null,null,null,null,null,0,"أقل من المتوقع"]
[null,null,null,null,null,null,null,null,null,0,"أقل من المتوقع"]
[null,null,null,null,null,null,null,null,null,0,"أقل من المتوقع"]
[null,null,null,null,null,null,null,null,null,0,"أقل من المتوقع"]
[null,null,null,null,null,null,null,null,null,0,"أقل من المتوقع"]
[null,null,null,null,null,null,null,null,null,0,"أقل من المتوقع"]
[null,null,null,null,null,null,null,null,null,0,"أقل من المتوقع"]
[null,null,null,null,null,null,null,null,null,0,"أقل من المتوقع"]
[null,null,null,null,null,null,null,null,null,0,"أقل من المتوقع"]
[null,null,null,null,null,null,null,null,null,0,"أقل من المتوقع"]
[null,null,null,null,null,null,null,null,null,0,"أقل من المتوقع"]
[null,null,null,null,null,null,null,null,null,0,"أقل من المتوقع"]
[null,null,null,null,null,null,null,null,null,0,"أقل من المتوقع"]
[null,null,null,null,null,null,null,null,null,0,"أقل من المتوقع"]
[null,null,null,null,null,null,null,null,null,0,"أقل من المتوقع"]
[null,null,null,null,null,null,null,null,null,0,"أقل من المتوقع"]
[null,null,null,null,null,null,null,null,null,0,"أقل من المتوقع"]
[null,null,null,null,null,null,null,null,null,0,"أقل من المتوقع"]
[null,null,null,null,null,null,null,null,null,0,"أقل من المتوقع"]
[null,null,null,null,null,null,null,null,null,0,"أقل من المتوقع"]
[null,null,null,null,null,null,null,null,null,0,"أقل من المتوقع"]
[null,null,null,null,null,null,null,null,null,0,"أقل من المتوقع"]
[null,null,null,null,null,null,null,null,null,0,"أقل من المتوقع"]
[null,null,null,null,null,null,null,null,null,0,"أقل من المتوقع"]
[null,null,null,null,null,null,null,null,null,0,"أقل من المتوقع"]
[null,null,null,null,null,null,null,null,null,0,"أقل من المتوقع"]
[null,null,null,null,null,null,null,null,null,0,"أقل من المتوقع"]
[null,null,null,null,null,null,null,null,null,0,"أقل من المتوقع"]
[null,null,null,null,null,null,null,null,null,0,"أقل من المتوقع"]
[null,null,null,null,null,null,null,null,null,0,"أقل من المتوقع"]
[null,null,null,null,null,null,null,null,null,0,"أقل من المتوقع"]
[null,null,null,null,null,null,null,null,null,0,"أقل من المتوقع"]
[null,null,null,null,null,null,null,null,null,0,{"$f":"Expectations(J325)","v":"أقل من المتوقع"}]
[null,null,null,null,null,null,null,null,null,{"$f":"SUM(E326:I326)","v":0},"أقل من المتوقع"]
[null,null,null,null,null,null,null,null,null,0,"أقل من المتوقع"]
[null,null,null,null,null,null,null,null,null,0,"أقل من المتوقع"]
[null,null,null,null,null,null,null,null,null,0,"أقل من المتوقع"]
[null,null,null,null,null,null,null,null,null,0,"أقل من المتوقع"]
[null,null,null,null,null,null,null,null,null,0,"أقل من المتوقع"]
[null,null,null,null,null,null,null,null,null,0,"أقل من المتوقع"]
[null,null,null,null,null,null,null,null,null,0,"أقل من المتوقع"]
[null,null,null,null,null,null,null,null,null,0,"أقل من المتوقع"]
[null,null,null,null,null,null,null,null,null,0,"أقل من المتوقع"]
[null,null,null,null,null,null,null,null,null,0,"أقل من المتوقع"]
[null,null,null,null,null,null,null,null,null,0,"أقل من المتوقع"]
[null,null,null,null,null,null,null,null,null,0,"أقل من المتوقع"]
[null,null,null,null,null,null,null,null,null,0,"أقل من المتوقع"]
[null,null,null,null,null,null,null,null,null,0,"أقل من المتوقع"]
[null,null,null,null,null,null,null,null,null,0,"أقل من المتوقع"]
[null,null,null,null,null,null,null,null,null,0,"أقل من المتوقع"]
[null,null,null,null,null,null,null,null,null,0,"أقل من المتوقع"]
[null,null,null,null,null,null,null,null,null,0,"أقل من المتوقع"]
[null,null,null,null,null,null,null,null,null,0,"أقل من المتوقع"]
[null,null,null,null,null,null,null,null,null,0,"أقل من المتوقع"]
[null,null,null,null,null,null,null,null,null,0,"أقل من المتوقع"]
[null,null,null,null,null,null,null,null,null,0,"أقل من المتوقع"]
[null,null,null,null,null,null,null,null,null,0,"أقل من المتوقع"]
[null,null,null,null,null,null,null,null,null,0,"أقل من المتوقع"]
[null,null,null,null,null,null,null,null,null,0,"أقل من المتوقع"]
[null,null,null,null,null,null,null,null,null,0,"أقل من المتوقع"]
[null,null,null,null,null,null,null,null,null,0,"أقل من المتوقع"]
[null,null,null,null,null,null,null,null,null,0,"أقل من المتوقع"]
[null,null,null,null,null,null,null,null,null,0,"أقل من المتوقع"]
[null,null,null,null,null,null,null,null,null,0,"أقل من المتوقع"]
[null,null,null,null,null,null,null,null,null,0,"أقل من المتوقع"]
[null,null,null,null,null,null,null,null,null,0,"أقل من المتوقع"]
[null,null,null,null,null,null,null,null,null,0,"أقل من المتوقع"]
[null,null,null,null,null,null,null,null,null,0,"أقل من المتوقع"]
[null,null,null,null,null,null,null,null,null,0,"أقل من المتوقع"]
[null,null,null,null,null,null,null,null,null,0,"أقل من المتوقع"]
[null,null,null,null,null,null,null,null,null,0,"أقل من المتوقع"]
[null,null,null,null,null,null,null,null,null,0,"أقل من المتوقع"]
[null,null,null,null,null,null,null,null,null,0,"أقل من المتوقع"]
[null,null,null,null,null,null,null,null,null,0,"أقل من المتوقع"]
[null,null,null,null,null,null,null,null,null,0,"أقل من المتوقع"]
[null,null,null,null,null,null,null,null,null,0,"أقل من المتوقع"]
[null,null,null,null,null,null,null,null,null,0,"أقل من المتوقع"]
[null,null,null,null,null,null,null,null,null,0,"أقل من المتوقع"]
[null,null,null,null,null,null,null,null,null,0,"أقل من المتوقع"]
[null,null,null,null,null,null,null,null,null,0,"أقل من المتوقع"]
[null,null,null,null,null,null,null,null,null,0,"أقل من المتوقع"]
[null,null,null,null,null,null,null,null,null,0,"أقل من المتوقع"]
[null,null,null,null,null,null,null,null,null,0,"أقل من المتوقع"]
[null,null,null,null,null,null,null,null,null,0,"أقل من المتوقع"]
[null,null,null,null,null,null,null,null,null,0,"أقل من المتوقع"]
[null,null,null,null,null,null,null,null,null,0,"أقل من المتوقع"]
[null,null,null,null,null,null,null,null,null,0,"أقل من المتوقع"]
[null,null,null,null,null,null,null,null,null,0,"أقل من المتوقع"]
[null,null,null,null,null,null,null,null,null,0,"أقل من المتوقع"]
[null,null,null,null,null,null,null,null,null,0,"أقل من المتوقع"]
[null,null,null,null,null,null,null,null,null,0,"أقل من المتوقع"]
[null,null,null,null,null,null,null,null,null,0,"أقل من المتوقع"]
[null,null,null,null,null,null,null,null,null,0,"أقل من المتوقع"]
[null,null,null,null,null,null,null,null,null,0,"أقل من المتوقع"]
[null,null,null,null,null,null,null,null,null,0,"أقل من المتوقع"]
[null,null,null,null,null,null,null,null,null,0,"أقل من المتوقع"]
[null,null,null,null,null,null,null,null,null,0,{"$f":"Expectations(J389)","v":"أقل من المتوقع"}]
[null,null,null,null,null,null,null,null,null,{"$f":"SUM(E390:I390)","v":0},"أقل من المتوقع"]
[null,null,null,null,null,null,null,null,null,0,"أقل من المتوقع"]
[null,null,null,null,null,null,null,null,null,0,"أقل من المتوقع"]
[null,null,null,null,null,null,null,null,null,0,"أقل من المتوقع"]
[null,null,null,null,null,null,null,null,null,0,"أقل من المتوقع"]
[null,null,null,null,null,null,null,null,null,0,"أقل من المتوقع"]
[null,null,null,null,null,null,null,null,null,0,"أقل من المتوقع"]
[null,null,null,null,null,null,null,null,null,0,"أقل من المتوقع"]
[null,null,null,null,null,null,null,null,null,0,"أقل من المتوقع"]
[null,null,null,null,null,null,null,null,null,0,"أقل من المتوقع"]
[null,null,null,null,null,null,null,null,null,0,"أقل من المتوقع"]
[null,null,null,null,null,null,null,null,null,0,"أقل من المتوقع"]
[null,null,null,null,null,null,null,null,null,0,"أقل من المتوقع"]
[null,null,null,null,null,null,null,null,null,0,"أقل من المتوقع"]
[null,null,null,null,null,null,null,null,null,0,"أقل من المتوقع"]
[null,null,null,null,null,null,null,null,null,0,"أقل من المتوقع"]
[null,null,null,null,null,null,null,null,null,0,"أقل من المتوقع"]
[null,null,null,null,null,null,null,null,null,0,"أقل من المتوقع"]
[null,null,null,null,null,null,null,null,null,0,"أقل من المتوقع"]
[null,null,null,null,null,null,null,null,null,0,"أقل من المتوقع"]
[null,null,null,null,null,null,null,null,null,0,"أقل من المتوقع"]
[null,null,null,null,null,null,null,null,null,0,"أقل من المتوقع"]
[null,null,null,null,null,null,null,null,null,0,"أقل من المتوقع"]
[null,null,null,null,null,null,null,null,null,0,"أقل من المتوقع"]
[null,null,null,null,null,null,null,null,null,0,"أقل من المتوقع"]
[null,null,null,null,null,null,null,null,null,0,"أقل من المتوقع"]
[null,null,null,null,null,null,null,null,null,0,"أقل من المتوقع"]
[null,null,null,null,null,null,null,null,null,0,"أقل من المتوقع"]
[null,null,null,null,null,null,null,null,null,0,"أقل من المتوقع"]
[null,null,null,null,null,null,null,null,null,0,"أقل من المتوقع"]
[null,null,null,null,null,null,null,null,null,0,"أقل من المتوقع"]
[null,null,null,null,null,null,null,null,null,0,"أقل من المتوقع"]
[null,null,null,null,null,null,null,null,null,0,"أقل من المتوقع"]
[null,null,null,null,null,null,null,null,null,0,"أقل من المتوقع"]
[null,null,null,null,null,null,null,null,null,0,"أقل من المتوقع"]
[null,null,null,null,null,null,null,null,null,0,"أقل من المتوقع"]
[null,null,null,null,null,null,null,null,null,0,"أقل من المتوقع"]
[null,null,null,null,null,null,null,null,null,0,"أقل من المتوقع"]
[null,null,null,null,null,null,null,null,null,0,"أقل من المتوقع"]
[null,null,null,null,null,null,null,null,null,0,"أقل من المتوقع"]
[null,null,null,null,null,null,null,null,null,0,"أقل من المتوقع"]
[null,null,null,null,null,null,null,null,null,0,"أقل من المتوقع"]
[null,null,null,null,null,null,null,null,null,0,"أقل من المتوقع"]
[null,null,null,null,null,null,null,null,null,0,"أقل من المتوقع"]
[null,null,null,null,null,null,null,null,null,0,"أقل من المتوقع"]
[null,null,null,null,null,null,null,null,null,0,"أقل من المتوقع"]
[null,null,null,null,null,null,null,null,null,0,"أقل من المتوقع"]
[null,null,null,null,null,null,null,null,null,0,"أقل من المتوقع"]
[null,null,null,null,null,null,null,null,null,0,"أقل من المتوقع"]
[null,null,null,null,null,null,null,null,null,0,"أقل من المتوقع"]
[null,null,null,null,null,null,null,null,null,0,"أقل من المتوقع"]
[null,null,null,null,null,null,null,null,null,0,"أقل من المتوقع"]
[null,null,null,null,null,null,null,null,null,0,"أقل من المتوقع"]
[null,null,null,null,null,null,null,null,null,0,"أقل من المتوقع"]
[null,null,null,null,null,null,null,null,null,0,"أقل من المتوقع"]
[null,null,null,null,null,null,null,null,null,0,"أقل من المتوقع"]
[null,null,null,null,null,null,null,null,null,0,"أقل من المتوقع"]
[null,null,null,null,null,null,null,null,null,0,"أقل من المتوقع"]
[null,null,null,null,null,null,null,null,null,0,"أقل من المتوقع"]
[null,null,null,null,null,null,null,null,null,0,"أقل من المتوقع"]
[null,null,null,null,null,null,null,null,null,0,"أقل من المتوقع"]
[null,null,null,null,null,null,null,null,null,0,"أقل من المتوقع"]
[null,null,null,null,null,null,null,null,null,0,"أقل من المتوقع"]
[null,null,null,null,null,null,null,null,null,0,{"$f":"Expectations(J453)","v":"أقل من المتوقع"}]
[null,null,null,null,null,null,null,null,null,{"$f":"SUM(E454:I454)","v":0},"أقل من المتوقع"]
[null,null,null,null,null,null,null,null,null,0,"أقل من المتوقع"]
[null,null,null,null,null,null,null,null,null,0,"أقل من المتوقع"]
[null,null,null,null,null,null,null,null,null,0,"أقل من المتوقع"]
[null,null,null,null,null,null,null,null,null,0,"أقل من المتوقع"]
[null,null,null,null,null,null,null,null,null,0,"أقل من المتوقع"]
[null,null,null,null,null,null,null,null,null,0,"أقل من المتوقع"]
[null,null,null,null,null,null,null,null,null,0,"أقل من المتوقع"]
[null,null,null,null,null,null,null,null,null,0,"أقل من المتوقع"]
[null,null,null,null,null,null,null,null,null,0,"أقل من المتوقع"]
[null,null,null,null,null,null,null,null,null,0,"أقل من المتوقع"]
[null,null,null,null,null,null,null,null,null,0,"أقل من المتوقع"]
[null,null,null,null,null,null,null,null,null,0,"أقل من المتوقع"]
[null,null,null,null,null,null,null,null,null,0,"أقل من المتوقع"]
[null,null,null,null,null,null,null,null,null,0,"أقل من المتوقع"]
[null,null,null,null,null,null,null,null,null,0,"أقل من المتوقع"]
[null,null,null,null,null,null,null,null,null,0,"أقل من المتوقع"]
[null,null,null,null,null,null,null,null,null,0,"أقل من المتوقع"]
[null,null,null,null,null,null,null,null,null,0,"أقل من المتوقع"]
[null,null,null,null,null,null,null,null,null,0,"أقل من المتوقع"]
[null,null,null,null,null,null,null,null,null,0,"أقل من المتوقع"]
[null,null,null,null,null,null,null,null,null,0,"أقل من المتوقع"]
[null,null,null,null,null,null,null,null,null,0,"أقل من المتوقع"]
[null,null,null,null,null,null,null,null,null,0,"أقل من المتوقع"]
[null,null,null,null,null,null,null,null,null,0,"أقل من المتوقع"]
[null,null,null,null,null,null,null,null,null,0,"أقل من المتوقع"]
[null,null,null,null,null,null,null,null,null,0,"أقل من المتوقع"]
[null,null,null,null,null,null,null,null,null,0,"أقل من المتوقع"]
[null,null,null,null,null,null,null,null,null,0,"أقل من المتوقع"]
[null,null,null,null,null,null,null,null,null,0,"أقل من المتوقع"]
[null,null,null,null,null,null,null,null,null,0,"أقل من المتوقع"]
[null,null,null,null,null,null,null,null,null,0,"أقل من المتوقع"]
[null,null,null,null,null,null,null,null,null,0,"أقل من المتوقع"]
[null,null,null,null,null,null,null,null,null,0,"أقل من المتوقع"]
[null,null,null,null,null,null,null,null,null,0,"أقل من المتوقع"]
[null,null,null,null,null,null,null,null,null,0,"أقل من المتوقع"]
[null,null,null,null,null,null,null,null,null,0,"أقل من المتوقع"]
[null,null,null,null,null,null,null,null,null,0,"أقل من المتوقع"]
[null,null,null,null,null,null,null,null,null,0,"أقل من المتوقع"]
[null,null,null,null,null,null,null,null,null,0,"أقل من المتوقع"]
[null,null,null,null,null,null,null,null,null,0,"أقل من المتوقع"]
[null,null,null,null,null,null,null,null,null,0,"أقل من المتوقع"]
[null,null,null,null,null,null,null,null,null,0,"أقل من المتوقع"]
[null,null,null,null,null,null,null,null,null,0,"أقل من المتوقع"]
[null,null,null,null,null,null,null,null,null,0,"أقل من المتوقع"]
[null,null,null,null,null,null,null,null,null,0,"أقل من المتوقع"]
[null,null,null,null,null,null,null,null,null,0,"أقل من المتوقع"]
[null,null,null,null,null,null,null,null,null,0,"أقل من المتوقع"]
[null,null,null,null,null,null,null,null,null,0,"أقل من المتوقع"]
[null,null,null,null,null,null,null,null,null,0,"أقل من المتوقع"]
[null,null,null,null,null,null,null,null,null,{"$f":"SUM(E504:I504)","v":0},"أقل من المتوقع"]
[null,null,null,null,null,null,null,null,null,0,"أقل من المتوقع"]
[null,null,null,null,null,null,null,null,null,0,"أقل من المتوقع"]
[null,null,null,null,null,null,null,null,null,0,"أقل من المتوقع"]
[null,null,null,null,null,null,null,null,null,0,"أقل من المتوقع"]
[null,null,null,null,null,null,null,null,null,{"$f":"SUM(E509:I509)","v":0},"أقل من المتوقع"]
[null,null,null,null,null,null,null,null,null,0,"أقل من المتوقع"]
[null,null,null,null,null,null,null,null,null,0,"أقل من المتوقع"]
[null,null,null,null,null,null,null,null,null,0,"أقل من المتوقع"]
[null,null,null,null,null,null,null,null,null,0,"أقل من المتوقع"]
[null,null,null,null,null,null,null,null,null,0,"أقل من المتوقع"]
[null,null,null,null,null,null,null,null,null,0,"أقل من المتوقع"]
[null,null,null,null,null,null,null,null,null,0,"أقل من المتوقع"]
[null,null,null,null,null,null,null,null,null,0,{"$f":"Expectations(J517)","v":"أقل من المتوقع"}]
[null,null,null,null,null,null,null,null,null,0,"أقل من المتوقع"]
[null,null,null,null,null,null,null,null,null,0,"أقل من المتوقع"]
[null,null,null,null,null,null,null,null,null,0,"أقل من المتوقع"]
[null,null,null,null,null,null,null,null,null,0,"أقل من المتوقع"]
[null,null,null,null,null,null,null,null,null,0,"أقل من المتوقع"]
[null,null,null,null,null,null,null,null,null,0,"أقل من المتوقع"]
[null,null,null,null,null,null,null,null,null,0,"أقل من المتوقع"]
[null,null,null,null,null,null,null,null,null,0,"أقل من المتوقع"]
[null,null,null,null,null,null,null,null,null,0,"أقل من المتوقع"]
[null,null,null,null,null,null,null,null,null,0,"أقل من المتوقع"]
[null,null,null,null,null,null,null,null,null,0,"أقل من المتوقع"]
[null,null,null,null,null,null,null,null,null,0,"أقل من المتوقع"]
[null,null,null,null,null,null,null,null,null,0,"أقل من المتوقع"]
[null,null,null,null,null,null,null,null,null,0,"أقل من المتوقع"]
[null,null,null,null,null,null,null,null,null,0,"أقل من المتوقع"]
[null,null,null,null,null,null,null,null,null,0,"أقل من المتوقع"]
[null,null,null,null,null,null,null,null,null,0,"أقل من المتوقع"]
[null,null,null,null,null,null,null,null,null,0,"أقل من المتوقع"]
[null,null,null,null,null,null,null,null,null,0,"أقل من المتوقع"]
[null,null,null,null,null,null,null,null,null,0,"أقل من المتوقع"]
[null,null,null,null,null,null,null,null,null,0,"أقل من المتوقع"]
[null,null,null,null,null,null,null,null,null,0,"أقل من المتوقع"]
[null,null,null,null,null,null,null,null,null,0,"أقل من المتوقع"]
[null,null,null,null,null,null,null,null,null,0,"أقل من المتوقع"]
[null,null,null,null,null,null,null,null,null,0,"أقل من المتوقع"]
[null,null,null,null,null,null,null,null,null,0,"أقل من المتوقع"]
[null,null,null,null,null,null,null,null,null,0,"أقل من المتوقع"]
[null,null,null,null,null,null,null,null,null,0,"أقل من المتوقع"]
[null,null,null,null,null,null,null,null,null,0,"أقل من المتوقع"]
[null,null,null,null,null,null,null,null,null,0,"أقل من المتوقع"]
[null,null,null,null,null,null,null,null,null,0,"أقل من المتوقع"]
[null,null,null,null,null,null,null,null,null,0,"أقل من المتوقع"]
[null,null,null,null,null,null,null,null,null,0,"أقل من المتوقع"]
[null,null,null,null,null,null,null,null,null,0,"أقل من المتوقع"]
[null,null,null,null,null,null,null,null,null,0,"أقل من المتوقع"]
[null,null,null,null,null,null,null,null,null,0,"أقل من المتوقع"]
[null,null,null,null,null,null,null,null,null,0,"أقل من المتوقع"]
[null,null,null,null,null,null,null,null,null,0,"أقل من المتوقع"]
[null,null,null,null,null,null,null,null,null,0,"أقل من المتوقع"]
[null,null,null,null,null,null,null,null,null,0,"أقل من المتوقع"]
[null,null,null,null,null,null,null,null,null,0,"أقل من المتوقع"]
[null,null,null,null,null,null,null,null,null,0,"أقل من المتوقع"]
[null,null,null,null,null,null,null,null,null,0,"أقل من المتوقع"]
[null,null,null,null,null,null,null,null,null,0,"أقل من المتوقع"]
[null,null,null,null,null,null,null,null,null,0,"أقل من المتوقع"]
[null,null,null,null,null,null,null,null,null,0,"أقل من المتوقع"]
[null,null,null,null,null,null,null,null,null,0,"أقل من المتوقع"]
[null,null,null,null,null,null,null,null,null,0,"أقل من المتوقع"]
[null,null,null,null,null,null,null,null,null,0,"أقل من المتوقع"]
[null,null,null,null,null,null,null,null,null,0,"أقل من المتوقع"]
[null,null,null,null,null,null,null,null,null,0,"أقل من المتوقع"]
[null,null,null,null,null,null,null,null,null,0,"أقل من المتوقع"]
[null,null,null,null,null,null,null,null,null,0,"أقل من المتوقع"]
[null,null,null,null,null,null,null,null,null,0,"أقل من المتوقع"]
[null,null,null,null,null,null,null,null,null,0,"أقل من المتوقع"]
[null,null,null,null,null,null,null,null,null,{"$f":"SUM(E573:I573)","v":0},"أقل من المتوقع"]
[null,null,null,null,null,null,null,null,null,0,"أقل من المتوقع"]
[null,null,null,null,null,null,null,null,null,0,"أقل من المتوقع"]
[null,null,null,null,null,null,null,null,null,0,"أقل من المتوقع"]
[null,null,null,null,null,null,null,null,null,0,"أقل من المتوقع"]
[null,null,null,null,null,null,null,null,null,0,"أقل من المتوقع"]
[null,null,null,null,null,null,null,null,null,0,"أقل من المتوقع"]
[null,null,null,null,null,null,null,null,null,0,"أقل من المتوقع"]
[null,null,null,null,null,null,null,null,null,0,{"$f":"Expectations(J581)","v":"أقل من المتوقع"}]
[null,null,null,null,null,null,null,null,null,0,"أقل من المتوقع"]
[null,null,null,null,null,null,null,null,null,0,"أقل من المتوقع"]
[null,null,null,null,null,null,null,null,null,0,"أقل من المتوقع"]
[null,null,null,null,null,null,null,null,null,0,"أقل من المتوقع"]
[null,null,null,null,null,null,null,null,null,0,"أقل من المتوقع"]
[null,null,null,null,null,null,null,null,null,0,"أقل من المتوقع"]
[null,null,null,null,null,null,null,null,null,0,"أقل من المتوقع"]
[null,null,null,null,null,null,null,null,null,0,"أقل من المتوقع"]
[null,null,null,null,null,null,null,null,null,0,"أقل من المتوقع"]
[null,null,null,null,null,null,null,null,null,0,"أقل من المتوقع"]
[null,null,null,null,null,null,null,null,null,0,"أقل من المتوقع"]
[null,null,null,null,null,null,null,null,null,0,"أقل من المتوقع"]
[null,null,null,null,null,null,null,null,null,0,"أقل من المتوقع"]
[null,null,null,null,null,null,null,null,null,0,"أقل من المتوقع"]
[null,null,null,null,null,null,null,null,null,0,"أقل من المتوقع"]
[null,null,null,null,null,null,null,null,null,0,"أقل من المتوقع"]
[null,null,null,null,null,null,null,null,null,0,"أقل من المتوقع"]
[null,null,null,null,null,null,null,null,null,0,"أقل من المتوقع"]
[null,null,null,null,null,null,null,null,null,0,"أقل من المتوقع"]
[null,null,null,null,null,null,null,null,null,0,"أقل من المتوقع"]
[null,null,null,null,null,null,null,null,null,0,"أقل من المتوقع"]
[null,null,null,null,null,null,null,null,null,0,"أقل من المتوقع"]
[null,null,null,null,null,null,null,null,null,0,"أقل من المتوقع"]
[null,null,null,null,null,null,null,null,null,0,"أقل من المتوقع"]
[null,null,null,null,null,null,null,null,null,0,"أقل من المتوقع"]
[null,null,null,null,null,null,null,null,null,0,"أقل من المتوقع"]
[null,null,null,null,null,null,null,null,null,0,"أقل من المتوقع"]
[null,null,null,null,null,null,null,null,null,0,"أقل من المتوقع"]
[null,null,null,null,null,null,null,null,null,0,"أقل من المتوقع"]
[null,null,null,null,null,null,null,null,null,0,"أقل من المتوقع"]
[null,null,null,null,null,null,null,null,null,0,"أقل من المتوقع"]
[null,null,null,null,null,null,null,null,null,0,"أقل من المتوقع"]
[null,null,null,null,null,null,null,null,null,0,"أقل من المتوقع"]
[null,null,null,null,null,null,null,null,null,0,"أقل من المتوقع"]
[null,null,null,null,null,null,null,null,null,0,"أقل من المتوقع"]
[null,null,null,null,null,null,null,null,null,0,"أقل من المتوقع"]
[null,null,null,null,null,null,null,null,null,0,"أقل من المتوقع"]
[null,null,null,null,null,null,null,null,null,0,"أقل من المتوقع"]
[null,null,null,null,null,null,null,null,null,0,"أقل من المتوقع"]
[null,null,null,null,null,null,null,null,null,0,"أقل من المتوقع"]
[null,null,null,null,null,null,null,null,null,0,"أقل من المتوقع"]
[null,null,null,null,null,null,null,null,null,0,"أقل من المتوقع"]
[null,null,null,null,null,null,null,null,null,0,"أقل من المتوقع"]
[null,null,null,null,null,null,null,null,null,0,"أقل من المتوقع"]
[null,null,null,null,null,null,null,null,null,0,"أقل من المتوقع"]
[null,null,null,null,null,null,null,null,null,0,"أقل من المتوقع"]
[null,null,null,null,null,null,null,null,null,0,"أقل من المتوقع"]
[null,null,null,null,null,null,null,null,null,0,"أقل من المتوقع"]
[null,null,null,null,null,null,null,null,null,0,"أقل من المتوقع"]
[null,null,null,null,null,null,null,null,null,0,"أقل من المتوقع"]
[null,null,null,null,null,null,null,null,null,0,"أقل من المتوقع"]
[null,null,null,null,null,null,null,null,null,0,"أقل من المتوقع"]
[null,null,null,null,null,null,null,null,null,0,"أقل من المتوقع"]
[null,null,null,null,null,null,null,null,null,0,"أقل من المتوقع"]
[null,null,null,null,null,null,null,null,null,0,"أقل من المتوقع"]
[null,null,null,null,null,null,null,null,null,{"$f":"SUM(E637:I637)","v":0},"أقل من المتوقع"]
[null,null,null,null,null,null,null,null,null,0,"أقل من المتوقع"]
[null,null,null,null,null,null,null,null,null,0,"أقل من المتوقع"]
[null,null,null,null,null,null,null,null,null,0,"أقل من المتوقع"]
[null,null,null,null,null,null,null,null,null,0,"أقل من المتوقع"]
[null,null,null,null,null,null,null,null,null,0,"أقل من المتوقع"]
[null,null,null,null,null,null,null,null,null,0,"أقل من المتوقع"]
[null,null,null,null,null,null,null,null,null,0,"أقل من المتوقع"]
[null,null,null,null,null,null,null,null,null,0,{"$f":"Expectations(J645)","v":"أقل من المتوقع"}]
[null,null,null,null,null,null,null,null,null,0,"أقل من المتوقع"]
[null,null,null,null,null,null,null,null,null,0,"أقل من المتوقع"]
[null,null,null,null,null,null,null,null,null,0,"أقل من المتوقع"]
[null,null,null,null,null,null,null,null,null,0,"أقل من المتوقع"]
[null,null,null,null,null,null,null,null,null,0,"أقل من المتوقع"]
[null,null,null,null,null,null,null,null,null,0,"أقل من المتوقع"]
[null,null,null,null,null,null,null,null,null,0,"أقل من المتوقع"]
[null,null,null,null,null,null,null,null,null,0,"أقل من المتوقع"]
[null,null,null,null,null,null,null,null,null,0,"أقل من المتوقع"]
[null,null,null,null,null,null,null,null,null,0,"أقل من المتوقع"]
[null,null,null,null,null,null,null,null,null,0,"أقل من المتوقع"]
[null,null,null,null,null,null,null,null,null,0,"أقل من المتوقع"]
[null,null,null,null,null,null,null,null,null,0,"أقل من المتوقع"]
[null,null,null,null,null,null,null,null,null,0,"أقل من المتوقع"]
[null,null,null,null,null,null,null,null,null,0,"أقل من المتوقع"]
[null,null,null,null,null,null,null,null,null,0,"أقل من المتوقع"]
[null,null,null,null,null,null,null,null,null,0,"أقل من المتوقع"]
[null,null,null,null,null,null,null,null,null,0,"أقل من المتوقع"]
[null,null,null,null,null,null,null,null,null,0,"أقل من المتوقع"]
[null,null,null,null,null,null,null,null,null,0,"أقل من المتوقع"]
[null,null,null,null,null,null,null,null,null,0,"أقل من المتوقع"]
[null,null,null,null,null,null,null,null,null,0,"أقل من المتوقع"]
[null,null,null,null,null,null,null,null,null,0,"أقل من المتوقع"]
[null,null,null,null,null,null,null,null,null,0,"أقل من المتوقع"]
[null,null,null,null,null,null,null,null,null,0,"أقل من المتوقع"]
[null,null,null,null,null,null,null,null,null,0,"أقل من المتوقع"]
[null,null,null,null,null,null,null,null,null,0,"أقل من المتوقع"]
[null,null,null,null,null,null,null,null,null,0,"أقل من المتوقع"]
[null,null,null,null,null,null,null,null,null,0,"أقل من المتوقع"]
[null,null,null,null,null,null,null,null,null,0,"أقل من المتوقع"]
[null,null,null,null,null,null,null,null,null,0,"أقل من المتوقع"]
[null,null,null,null,null,null,null,null,null,0,"أقل من المتوقع"]
[null,null,null,null,null,null,null,null,null,0,"أقل من المتوقع"]
[null,null,null,null,null,null,null,null,null,0,"أقل من المتوقع"]
[null,null,null,null,null,null,null,null,null,0,"أقل من المتوقع"]
[null,null,null,null,null,null,null,null,null,0,"أقل من المتوقع"]
[null,null,null,null,null,null,null,null,null,0,"أقل من المتوقع"]
[null,null,null,null,null,null,null,null,null,0,"أقل من المتوقع"]
[null,null,null,null,null,null,null,null,null,0,"أقل من المتوقع"]
[null,null,null,null,null,null,null,null,null,0,"أقل من المتوقع"]
[null,null,null,null,null,null,null,null,null,0,"أقل من المتوقع"]
[null,null,null,null,null,null,null,null,null,0,"أقل من المتوقع"]
[null,null,null,null,null,null,null,null,null,0,"أقل من المتوقع"]
[null,null,null,null,null,null,null,null,null,0,"أقل من المتوقع"]
[null,null,null,null,null,null,null,null,null,0,"أقل من المتوقع"]
[null,null,null,null,null,null,null,null,null,0,"أقل من المتوقع"]
[null,null,null,null,null,null,null,null,null,0,"أقل من المتوقع"]
[null,null,null,null,null,null,null,null,null,0,"أقل من المتوقع"]
[null,null,null,null,null,null,null,null,null,0,"أقل من المتوقع"]
[null,null,null,null,null,null,null,null,null,0,"أقل من المتوقع"]
[null,null,null,null,null,null,null,null,null,0,"أقل من المتوقع"]
[null,null,null,null,null,null,null,null,null,0,"أقل من المتوقع"]
[null,null,null,null,null,null,null,null,null,0,"أقل من المتوقع"]
[null,null,null,null,null,null,null,null,null,0,"أقل من المتوقع"]
[null,null,null,null,null,null,null,null,null,0,"أقل من المتوقع"]
[null,null,null,null,null,null,null,null,null,{"$f":"SUM(E701:I701)","v":0},"أقل من المتوقع"]
[null,null,null,null,null,null,null,null,null,0,"أقل من المتوقع"]
[null,null,null,null,null,null,null,null,null,0,"أقل من المتوقع"]
[null,null,null,null,null,null,null,null,null,0,"أقل من المتوقع"]
[null,null,null,null,null,null,null,null,null,0,"أقل من المتوقع"]
[null,null,null,null,null,null,null,null,null,0,"أقل من المتوقع"]
[null,null,null,null,null,null,null,null,null,0,"أقل من المتوقع"]
[null,null,null,null,null,null,null,null,null,0,"أقل من المتوقع"]
[null,null,null,null,null,null,null,null,null,0,{"$f":"Expectations(J709)","v":"أقل من المتوقع"}]
[null,null,null,null,null,null,null,null,null,0,"أقل من المتوقع"]
[null,null,null,null,null,null,null,null,null,0,"أقل من المتوقع"]
[null,null,null,null,null,null,null,null,null,0,"أقل من المتوقع"]
[null,null,null,null,null,null,null,null,null,0,"أقل من المتوقع"]
[null,null,null,null,null,null,null,null,null,0,"أقل من المتوقع"]
[null,null,null,null,null,null,null,null,null,0,"أقل من المتوقع"]
[null,null,null,null,null,null,null,null,null,0,"أقل من المتوقع"]
[null,null,null,null,null,null,null,null,null,0,"أقل من المتوقع"]
[null,null,null,null,null,null,null,null,null,0,"أقل من المتوقع"]
[null,null,null,null,null,null,null,null,null,0,"أقل من المتوقع"]
[null,null,null,null,null,null,null,null,null,0,"أقل من المتوقع"]
[null,null,null,null,null,null,null,null,null,0,"أقل من المتوقع"]
[null,null,null,null,null,null,null,null,null,0,"أقل من المتوقع"]
[null,null,null,null,null,null,null,null,null,0,"أقل من المتوقع"]
[null,null,null,null,null,null,null,null,null,0,"أقل من المتوقع"]
[null,null,null,null,null,null,null,null,null,0,"أقل من المتوقع"]
[null,null,null,null,null,null,null,null,null,0,"أقل من المتوقع"]
[null,null,null,null,null,null,null,null,null,0,"أقل من المتوقع"]
[null,null,null,null,null,null,null,null,null,0,"أقل من المتوقع"]
[null,null,null,null,null,null,null,null,null,0,"أقل من المتوقع"]
[null,null,null,null,null,null,null,null,null,0,"أقل من المتوقع"]
[null,null,null,null,null,null,null,null,null,0,"أقل من المتوقع"]
[null,null,null,null,null,null,null,null,null,0,"أقل من المتوقع"]
[null,null,null,null,null,null,null,null,null,0,"أقل من المتوقع"]
[null,null,null,null,null,null,null,null,null,0,"أقل من المتوقع"]
[null,null,null,null,null,null,null,null,null,0,"أقل من المتوقع"]
[null,null,null,null,null,null,null,null,null,0,"أقل من المتوقع"]
[null,null,null,null,null,null,null,null,null,0,"أقل من المتوقع"]
[null,null,null,null,null,null,null,null,null,0,"أقل من المتوقع"]
[null,null,null,null,null,null,null,null,null,0,"أقل من المتوقع"]
[null,null,null,null,null,null,null,null,null,0,"أقل من المتوقع"]
[null,null,null,null,null,null,null,null,null,0,"أقل من المتوقع"]
[null,null,null,null,null,null,null,null,null,0,"أقل من المتوقع"]
[null,null,null,null,null,null,null,null,null,0,"أقل من المتوقع"]
[null,null,null,null,null,null,null,null,null,0,"أقل من المتوقع"]
[null,null,null,null,null,null,null,null,null,0,"أقل من المتوقع"]
[null,null,null,null,null,null,null,null,null,0,"أقل من المتوقع"]
[null,null,null,null,null,null,null,null,null,0,"أقل من المتوقع"]
[null,null,null,null,null,null,null,null,null,0,"أقل من المتوقع"]
[null,null,null,null,null,null,null,null,null,0,"أقل من المتوقع"]
[null,null,null,null,null,null,null,null,null,0,"أقل من المتوقع"]
[null,null,null,null,null,null,null,null,null,0,"أقل من المتوقع"]
[null,null,null,null,null,null,null,null,null,0,"أقل من المتوقع"]
[null,null,null,null,null,null,null,null,null,0,"أقل من المتوقع"]
[null,null,null,null,null,null,null,null,null,0,"أقل من المتوقع"]
[null,null,null,null,null,null,null,null,null,0,"أقل من المتوقع"]
[null,null,null,null,null,null,null,null,null,0,"أقل من المتوقع"]
[null,null,null,null,null,null,null,null,null,0,"أقل من المتوقع"]
[null,null,null,null,null,null,null,null,null,0,"أقل من المتوقع"]
[null,null,null,null,null,null,null,null,null,0,"أقل من المتوقع"]
[null,null,null,null,null,null,null,null,null,0,"أقل من المتوقع"]
[null,null,null,null,null,null,null,null,null,0,"أقل من المتوقع"]
[null,null,null,null,null,null,null,null,null,0,"أقل من المتوقع"]
[null,null,null,null,null,null,null,null,null,0,"أقل من المتوقع"]
[null,null,null,null,null,null,null,null,null,0,"أقل من المتوقع"]
[null,null,null,null,null,null,null,null,null,{"$f":"SUM(E765:I765)","v":0},"أقل من المتوقع"]
[null,null,null,null,null,null,null,null,null,0,"أقل من المتوقع"]
[null,null,null,null,null,null,null,null,null,0,"أقل من المتوقع"]
[null,null,null,null,null,null,null,null,null,0,"أقل من المتوقع"]
[null,null,null,null,null,null,null,null,null,0,"أقل من المتوقع"]
[null,null,null,null,null,null,null,null,null,0,"أقل من المتوقع"]
[null,null,null,null,null,null,null,null,null,0,"أقل من المتوقع"]
[null,null,null,null,null,null,null,null,null,0,"أقل من المتوقع"]
[null,null,null,null,null,null,null,null,null,0,{"$f":"Expectations(J773)","v":"أقل من المتوقع"}]
[null,null,null,null,null,null,null,null,null,0,"أقل من المتوقع"]
[null,null,null,null,null,null,null,null,null,0,"أقل من المتوقع"]
[null,null,null,null,null,null,null,null,null,0,"أقل من المتوقع"]
[null,null,null,null,null,null,null,null,null,0,"أقل من المتوقع"]
[null,null,null,null,null,null,null,null,null,0,"أقل من المتوقع"]
[null,null,null,null,null,null,null,null,null,0,"أقل من المتوقع"]
[null,null,null,null,null,null,null,null,null,0,"أقل من المتوقع"]
[null,null,null,null,null,null,null,null,null,0,"أقل من المتوقع"]
[null,null,null,null,null,null,null,null,null,0,"أقل من المتوقع"]
[null,null,null,null,null,null,null,null,null,0,"أقل من المتوقع"]
[null,null,null,null,null,null,null,null,null,0,"أقل من المتوقع"]
[null,null,null,null,null,null,null,null,null,0,"أقل من المتوقع"]
[null,null,null,null,null,null,null,null,null,0,"أقل من المتوقع"]
[null,null,null,null,null,null,null,null,null,0,"أقل من المتوقع"]
[null,null,null,null,null,null,null,null,null,0,"أقل من المتوقع"]
[null,null,null,null,null,null,null,null,null,0,"أقل من المتوقع"]
[null,null,null,null,null,null,null,null,null,0,"أقل من المتوقع"]
[null,null,null,null,null,null,null,null,null,0,"أقل من المتوقع"]
[null,null,null,null,null,null,null,null,null,0,"أقل من المتوقع"]
[null,null,null,null,null,null,null,null,null,0,"أقل من المتوقع"]
[null,null,null,null,null,null,null,null,null,0,"أقل من المتوقع"]
[null,null,null,null,null,null,null,null,null,0,"أقل من المتوقع"]
[null,null,null,null,null,null,null,null,null,0,"أقل من المتوقع"]
[null,null,null,null,null,null,null,null,null,0,"أقل من المتوقع"]
[null,null,null,null,null,null,null,null,null,0,"أقل من المتوقع"]
[null,null,null,null,null,null,null,null,null,0,"أقل من المتوقع"]
[null,null,null,null,null,null,null,null,null,0,"أقل من المتوقع"]
[null,null,null,null,null,null,null,null,null,0,"أقل من المتوقع"]
[null,null,null,null,null,null,null,null,null,0,"أقل من المتوقع"]
[null,null,null,null,null,null,null,null,null,0,"أقل من المتوقع"]
[null,null,null,null,null,null,null,null,null,0,"أقل من المتوقع"]
[null,null,null,null,null,null,null,null,null,0,"أقل من المتوقع"]
[null,null,null,null,null,null,null,null,null,0,"أقل من المتوقع"]
[null,null,null,null,null,null,null,null,null,0,"أقل من المتوقع"]
[null,null,null,null,null,null,null,null,null,0,"أقل من المتوقع"]
[null,null,null,null,null,null,null,null,null,0,"أقل من المتوقع"]
[null,null,null,null,null,null,null,null,null,0,"أقل من المتوقع"]
[null,null,null,null,null,null,null,null,null,0,"أقل من المتوقع"]
[null,null,null,null,null,null,null,null,null,0,"أقل من المتوقع"]
[null,null,null,null,null,null,null,null,null,0,"أقل من المتوقع"]
[null,null,null,null,null,null,null,null,null,0,"أقل من المتوقع"]
[null,null,null,null,null,null,null,null,null,0,"أقل من المتوقع"]
[null,null,null,null,null,null,null,null,null,0,"أقل من المتوقع"]
[null,null,null,null,null,null,null,null,null,0,"أقل من المتوقع"]
[null,null,null,null,null,null,null,null,null,0,"أقل من المتوقع"]
[null,null,null,null,null,null,null,null,null,0,"أقل من المتوقع"]
[null,null,null,null,null,null,null,null,null,0,"أقل من المتوقع"]
[null,null,null,null,null,null,null,null,null,0,"أقل من المتوقع"]
[null,null,null,null,null,null,null,null,null,0,"أقل من المتوقع"]
[null,null,null,null,null,null,null,null,null,0,"أقل من المتوقع"]
[null,null,null,null,null,null,null,null,null,0,"أقل من المتوقع"]
[null,null,null,null,null,null,null,null,null,0,"أقل من المتوقع"]
[null,null,null,null,null,null,null,null,null,0,"أقل من المتوقع"]
[null,null,null,null,null,null,null,null,null,0,"أقل من المتوقع"]
[null,null,null,null,null,null,null,null,null,0,"أقل من المتوقع"]
[null,null,null,null,null,null,null,null,null,{"$f":"SUM(E829:I829)","v":0},"أقل من المتوقع"]
[null,null,null,null,null,null,null,null,null,0,"أقل من المتوقع"]
[null,null,null,null,null,null,null,null,null,0,"أقل من المتوقع"]
[null,null,null,null,null,null,null,null,null,0,"أقل من المتوقع"]
[null,null,null,null,null,null,null,null,null,0,"أقل من المتوقع"]
[null,null,null,null,null,null,null,null,null,0,"أقل من المتوقع"]
[null,null,null,null,null,null,null,null,null,0,"أقل من المتوقع"]
[null,null,null,null,null,null,null,null,null,0,"أقل من المتوقع"]
[null,null,null,null,null,null,null,null,null,0,{"$f":"Expectations(J837)","v":"أقل من المتوقع"}]
[null,null,null,null,null,null,null,null,null,0,"أقل من المتوقع"]
[null,null,null,null,null,null,null,null,null,0,"أقل من المتوقع"]
[null,null,null,null,null,null,null,null,null,0,"أقل من المتوقع"]
[null,null,null,null,null,null,null,null,null,0,"أقل من المتوقع"]
[null,null,null,null,null,null,null,null,null,0,"أقل من المتوقع"]
[null,null,null,null,null,null,null,null,null,0,"أقل من المتوقع"]
[null,null,null,null,null,null,null,null,null,0,"أقل من المتوقع"]
[null,null,null,null,null,null,null,null,null,0,"أقل من المتوقع"]
[null,null,null,null,null,null,null,null,null,0,"أقل من المتوقع"]
[null,null,null,null,null,null,null,null,null,0,"أقل من المتوقع"]
[null,null,null,null,null,null,null,null,null,0,"أقل من المتوقع"]
[null,null,null,null,null,null,null,null,null,0,"أقل من المتوقع"]
[null,null,null,null,null,null,null,null,null,0,"أقل من المتوقع"]
[null,null,null,null,null,null,null,null,null,0,"أقل من المتوقع"]
[null,null,null,null,null,null,null,null,null,0,"أقل من المتوقع"]
[null,null,null,null,null,null,null,null,null,0,"أقل من المتوقع"]
[null,null,null,null,null,null,null,null,null,0,"أقل من المتوقع"]
[null,null,null,null,null,null,null,null,null,0,"أقل من المتوقع"]
[null,null,null,null,null,null,null,null,null,0,"أقل من المتوقع"]
[null,null,null,null,null,null,null,null,null,0,"أقل من المتوقع"]
[null,null,null,null,null,null,null,null,null,0,"أقل من المتوقع"]
[null,null,null,null,null,null,null,null,null,0,"أقل من المتوقع"]
[null,null,null,null,null,null,null,null,null,0,"أقل من المتوقع"]
[null,null,null,null,null,null,null,null,null,0,"أقل من المتوقع"]
[null,null,null,null,null,null,null,null,null,0,"أقل من المتوقع"]
[null,null,null,null,null,null,null,null,null,0,"أقل من المتوقع"]
[null,null,null,null,null,null,null,null,null,0,"أقل من المتوقع"]
[null,null,null,null,null,null,null,null,null,0,"أقل من المتوقع"]
[null,null,null,null,null,null,null,null,null,0,"أقل من المتوقع"]
[null,null,null,null,null,null,null,null,null,0,"أقل من المتوقع"]
[null,null,null,null,null,null,null,null,null,0,"أقل من المتوقع"]
[null,null,null,null,null,null,null,null,null,0,"أقل من المتوقع"]
[null,null,null,null,null,null,null,null,null,0,"أقل من المتوقع"]
[null,null,null,null,null,null,null,null,null,0,"أقل من المتوقع"]
[null,null,null,null,null,null,null,null,null,0,"أقل من المتوقع"]
[null,null,null,null,null,null,null,null,null,0,"أقل من المتوقع"]
[null,null,null,null,null,null,null,null,null,0,"أقل من المتوقع"]
[null,null,null,null,null,null,null,null,null,0,"أقل من المتوقع"]
[null,null,null,null,null,null,null,null,null,0,"أقل من المتوقع"]
[null,null,null,null,null,null,null,null,null,0,"أقل من المتوقع"]
[null,null,null,null,null,null,null,null,null,0,"أقل من المتوقع"]
[null,null,null,null,null,null,null,null,null,0,"أقل من المتوقع"]
[null,null,null,null,null,null,null,null,null,0,"أقل من المتوقع"]
[null,null,null,null,null,null,null,null,null,0,"أقل من المتوقع"]
[null,null,null,null,null,null,null,null,null,0,"أقل من المتوقع"]
[null,null,null,null,null,null,null,null,null,0,"أقل من المتوقع"]
[null,null,null,null,null,null,null,null,null,0,"أقل من المتوقع"]
[null,null,null,null,null,null,null,null,null,0,"أقل من المتوقع"]
[null,null,null,null,null,null,null,null,null,0,"أقل من المتوقع"]
[null,null,null,null,null,null,null,null,null,0,"أقل من المتوقع"]
[null,null,null,null,null,null,null,null,null,0,"أقل من المتوقع"]
[null,null,null,null,null,null,null,null,null,0,"أقل من المتوقع"]
[null,null,null,null,null,null,null,null,null,0,"أقل من المتوقع"]
[null,null,null,null,null,null,null,null,null,0,"أقل من المتوقع"]
[null,null,null,null,null,null,null,null,null,0,"أقل من المتوقع"]
[null,null,null,null,null,null,null,null,null,{"$f":"SUM(E893:I893)","v":0},"أقل من المتوقع"]
[null,null,null,null,null,null,null,null,null,0,"أقل من المتوقع"]
[null,null,null,null,null,null,null,null,null,0,"أقل من المتوقع"]
[null,null,null,null,null,null,null,null,null,0,"أقل من المتوقع"]
[null,null,null,null,null,null,null,null,null,0,"أقل من المتوقع"]
[null,null,null,null,null,null,null,null,null,0,"أقل من المتوقع"]
[null,null,null,null,null,null,null,null,null,0,"أقل من المتوقع"]
[null,null,null,null,null,null,null,null,null,0,"أقل من المتوقع"]
[null,null,null,null,null,null,null,null,null,0,{"$f":"Expectations(J901)","v":"أقل من المتوقع"}]
[null,null,null,null,null,null,null,null,null,0,"أقل من المتوقع"]
[null,null,null,null,null,null,null,null,null,0,"أقل من المتوقع"]
[null,null,null,null,null,null,null,null,null,0,"أقل من المتوقع"]
[null,null,null,null,null,null,null,null,null,0,"أقل من المتوقع"]
[null,null,null,null,null,null,null,null,null,0,"أقل من المتوقع"]
[null,null,null,null,null,null,null,null,null,0,"أقل من المتوقع"]
[null,null,null,null,null,null,null,null,null,0,"أقل من المتوقع"]
[null,null,null,null,null,null,null,null,null,0,"أقل من المتوقع"]
[null,null,null,null,null,null,null,null,null,0,"أقل من المتوقع"]
[null,null,null,null,null,null,null,null,null,0,"أقل من المتوقع"]
[null,null,null,null,null,null,null,null,null,0,"أقل من المتوقع"]
[null,null,null,null,null,null,null,null,null,0,"أقل من المتوقع"]
[null,null,null,null,null,null,null,null,null,0,"أقل من المتوقع"]
[null,null,null,null,null,null,null,null,null,0,"أقل من المتوقع"]
[null,null,null,null,null,null,null,null,null,0,"أقل من المتوقع"]
[null,null,null,null,null,null,null,null,null,0,"أقل من المتوقع"]
[null,null,null,null,null,null,null,null,null,0,"أقل من المتوقع"]
[null,null,null,null,null,null,null,null,null,0,"أقل من المتوقع"]
[null,null,null,null,null,null,null,null,null,0,"أقل من المتوقع"]
[null,null,null,null,null,null,null,null,null,0,"أقل من المتوقع"]
[null,null,null,null,null,null,null,null,null,0,"أقل من المتوقع"]
[null,null,null,null,null,null,null,null,null,0,"أقل من المتوقع"]
[null,null,null,null,null,null,null,null,null,0,"أقل من المتوقع"]
[null,null,null,null,null,null,null,null,null,0,"أقل من المتوقع"]
[null,null,null,null,null,null,null,null,null,0,"أقل من المتوقع"]
[null,null,null,null,null,null,null,null,null,0,"أقل من المتوقع"]
[null,null,null,null,null,null,null,null,null,0,"أقل من المتوقع"]
[null,null,null,null,null,null,null,null,null,0,"أقل من المتوقع"]
[null,null,null,null,null,null,null,null,null,0,"أقل من المتوقع"]
[null,null,null,null,null,null,null,null,null,0,"أقل من المتوقع"]
[null,null,null,null,null,null,null,null,null,0,"أقل من المتوقع"]
[null,null,null,null,null,null,null,null,null,0,"أقل من المتوقع"]
[null,null,null,null,null,null,null,null,null,0,"أقل من المتوقع"]
[null,null,null,null,null,null,null,null,null,0,"أقل من المتوقع"]
[null,null,null,null,null,null,null,null,null,0,"أقل من المتوقع"]
[null,null,null,null,null,null,null,null,null,0,"أقل من المتوقع"]
[null,null,null,null,null,null,null,null,null,0,"أقل من المتوقع"]
[null,null,null,null,null,null,null,null,null,0,"أقل من المتوقع"]
[null,null,null,null,null,null,null,null,null,0,"أقل من المتوقع"]
[null,null,null,null,null,null,null,null,null,0,"أقل من المتوقع"]
[null,null,null,null,null,null,null,null,null,0,"أقل من المتوقع"]
[null,null,null,null,null,null,null,null,null,0,"أقل من المتوقع"]
[null,null,null,null,null,null,null,null,null,0,"أقل من المتوقع"]
[null,null,null,null,null,null,null,null,null,0,"أقل من المتوقع"]
[null,null,null,null,null,null,null,null,null,0,"أقل من المتوقع"]
[null,null,null,null,null,null,null,null,null,0,"أقل من المتوقع"]
[null,null,null,null,null,null,null,null,null,0,"أقل من المتوقع"]
[null,null,null,null,null,null,null,null,null,0,"أقل من المتوقع"]
[null,null,null,null,null,null,null,null,null,0,"أقل من المتوقع"]
[null,null,null,null,null,null,null,null,null,0,"أقل من المتوقع"]
[null,null,null,null,null,null,null,null,null,0,"أقل من المتوقع"]
[null,null,null,null,null,null,null,null,null,0,"أقل من المتوقع"]
[null,null,null,null,null,null,null,null,null,0,"أقل من المتوقع"]
[null,null,null,null,null,null,null,null,null,0,"أقل من المتوقع"]
[null,null,null,null,null,null,null,null,null,0,"أقل من المتوقع"]
[null,null,null,null,null,null,null,null,null,{"$f":"SUM(E957:I957)","v":0},"أقل من المتوقع"]
[null,null,null,null,null,null,null,null,null,0,"أقل من المتوقع"]
[null,null,null,null,null,null,null,null,null,0,"أقل من المتوقع"]
[null,null,null,null,null,null,null,null,null,0,"أقل من المتوقع"]
[null,null,null,null,null,null,null,null,null,0,"أقل من المتوقع"]
[null,null,null,null,null,null,null,null,null,0,"أقل من المتوقع"]
[null,null,null,null,null,null,null,null,null,0,"أقل من المتوقع"]
[null,null,null,null,null,null,null,null,null,0,"أقل من المتوقع"]
[null,null,null,null,null,null,null,null,null,0,{"$f":"Expectations(J965)","v":"أقل من المتوقع"}]
[null,null,null,null,null,null,null,null,null,0,"أقل من المتوقع"]
[null,null,null,null,null,null,null,null,null,0,"أقل من المتوقع"]
[null,null,null,null,null,null,null,null,null,0,"أقل من المتوقع"]
[null,null,null,null,null,null,null,null,null,0,"أقل من المتوقع"]
[null,null,null,null,null,null,null,null,null,0,"أقل من المتوقع"]
[null,null,null,null,null,null,null,null,null,0,"أقل من المتوقع"]
[null,null,null,null,null,null,null,null,null,0,"أقل من المتوقع"]
[null,null,null,null,null,null,null,null,null,0,"أقل من المتوقع"]
[null,null,null,null,null,null,null,null,null,0,"أقل من المتوقع"]
[null,null,null,null,null,null,null,null,null,0,"أقل من المتوقع"]
[null,null,null,null,null,null,null,null,null,0,"أقل من المتوقع"]
[null,null,null,null,null,null,null,null,null,0,"أقل من المتوقع"]
[null,null,null,null,null,null,null,null,null,0,"أقل من المتوقع"]
[null,null,null,null,null,null,null,null,null,0,"أقل من المتوقع"]
[null,null,null,null,null,null,null,null,null,0,"أقل من المتوقع"]
[null,null,null,null,null,null,null,null,null,0,"أقل من المتوقع"]
[null,null,null,null,null,null,null,null,null,0,"أقل من المتوقع"]
[null,null,null,null,null,null,null,null,null,0,"أقل من المتوقع"]
[null,null,null,null,null,null,null,null,null,0,"أقل من المتوقع"]
[null,null,null,null,null,null,null,null,null,0,"أقل من المتوقع"]
[null,null,null,null,null,null,null,null,null,0,"أقل من المتوقع"]
[null,null,null,null,null,null,null,null,null,0,"أقل من المتوقع"]
[null,null,null,null,null,null,null,null,null,0,"أقل من المتوقع"]
[null,null,null,null,null,null,null,null,null,0,"أقل من المتوقع"]
[null,null,null,null,null,null,null,null,null,0,"أقل من المتوقع"]
[null,null,null,null,null,null,null,null,null,0,"أقل من المتوقع"]
[null,null,null,null,null,null,null,null,null,0,"أقل من المتوقع"]
[null,null,null,null,null,null,null,null,null,0,"أقل من المتوقع"]
[null,null,null,null,null,null,null,null,null,0,"أقل من المتوقع"]
[null,null,null,null,null,null,null,null,null,0,"أقل من المتوقع"]
[null,null,null,null,null,null,null,null,null,0,"أقل من المتوقع"]
[null,null,null,null,null,null,null,null,null,0,"أقل من المتوقع"]
[null,null,null,null,null,null,null,null,null,0,"أقل من المتوقع"]
[null,null,null,null,null,null,null,null,null,0,"أقل من المتوقع"]
[null,null,null,null,null,null,null,null,null,0,"أقل من المتوقع"]
[null,null,null,null,null,null,null,null,null,0,"أقل من المتوقع"]
[null,null,null,null,null,null,null,null,null,0,"أقل من المتوقع"]
[null,null,null,null,null,null,null,null,null,0,"أقل من المتوقع"]
[null,null,null,null,null,null,null,null,null,0,"أقل من المتوقع"]
[null,null,null,null,null,null,null,null,null,0,"أقل من المتوقع"]
[null,null,null,null,null,null,null,null,null,0,"أقل من المتوقع"]
[null,null,null,null,null,null,null,null,null,0,"أقل من المتوقع"]
[null,null,null,null,null,null,null,null,null,0,"أقل من المتوقع"]
[null,null,null,null,null,null,null,null,null,0,"أقل من المتوقع"]
[null,null,null,null,null,null,null,null,null,0,"أقل من المتوقع"]
[null,null,null,null,null,null,null,null,null,0,"أقل من المتوقع"]
[null,null,null,null,null,null,null,null,null,0,"أقل من المتوقع"]
[null,null,null,null,null,null,null,null,null,0,"أقل من المتوقع"]
[null,null,null,null,null,null,null,null,null,0,"أقل من المتوقع"]
[null,null,null,null,null,null,null,null,null,0,"أقل من المتوقع"]
[null,null,null,null,null,null,null,null,null,0,"أقل من المتوقع"]
[null,null,null,null,null,null,null,null,null,0,"أقل من المتوقع"]
[null,null,null,null,null,null,null,null,null,0,"أقل من المتوقع"]
[null,null,null,null,null,null,null,null,null,0,"أقل من المتوقع"]
[null,null,null,null,null,null,null,null,null,0,"أقل من المتوقع"]
[null,null,null,null,null,null,null,null,null,{"$f":"SUM(E1021:I1021)","v":0},"أقل من المتوقع"]
[null,null,null,null,null,null,null,null,null,0,"أقل من المتوقع"]
[null,null,null,null,null,null,null,null,null,0,"أقل من المتوقع"]
[null,null,null,null,null,null,null,null,null,0,"أقل من المتوقع"]
[null,null,null,null,null,null,null,null,null,0,"أقل من المتوقع"]
[null,null,null,null,null,null,null,null,null,0,"أقل من المتوقع"]
[null,null,null,null,null,null,null,null,null,0,"أقل من المتوقع"]
[null,null,null,null,null,null,null,null,null,0,"أقل من المتوقع"]
[null,null,null,null,null,null,null,null,null,0,{"$f":"Expectations(J1029)","v":"أقل من المتوقع"}]
[null,null,null,null,null,null,null,null,null,0,"أقل من المتوقع"]
[null,null,null,null,null,null,null,null,null,0,"أقل من المتوقع"]
[null,null,null,null,null,null,null,null,null,0,"أقل من المتوقع"]
[null,null,null,null,null,null,null,null,null,0,"أقل من المتوقع"]
[null,null,null,null,null,null,null,null,null,0,"أقل من المتوقع"]
[null,null,null,null,null,null,null,null,null,0,"أقل من المتوقع"]
[null,null,null,null,null,null,null,null,null,0,"أقل من المتوقع"]
[null,null,null,null,null,null,null,null,null,0,"أقل من المتوقع"]
[null,null,null,null,null,null,null,null,null,0,"أقل من المتوقع"]
[null,null,null,null,null,null,null,null,null,0,"أقل من المتوقع"]
[null,null,null,null,null,null,null,null,null,0,"أقل من المتوقع"]
[null,null,null,null,null,null,null,null,null,0,"أقل من المتوقع"]
[null,null,null,null,null,null,null,null,null,0,"أقل من المتوقع"]
[null,null,null,null,null,null,null,null,null,0,"أقل من المتوقع"]
[null,null,null,null,null,null,null,null,null,0,"أقل من المتوقع"]
[null,null,null,null,null,null,null,null,null,0,"أقل من المتوقع"]
[null,null,null,null,null,null,null,null,null,0,"أقل من المتوقع"]
[null,null,null,null,null,null,null,null,null,0,"أقل من المتوقع"]
[null,null,null,null,null,null,null,null,null,0,"أقل من المتوقع"]
[null,null,null,null,null,null,null,null,null,0,"أقل من المتوقع"]
[null,null,null,null,null,null,null,null,null,0,"أقل من المتوقع"]
[null,null,null,null,null,null,null,null,null,0,"أقل من المتوقع"]
[null,null,null,null,null,null,null,null,null,0,"أقل من المتوقع"]
[null,null,null,null,null,null,null,null,null,0,"أقل من المتوقع"]
[null,null,null,null,null,null,null,null,null,0,"أقل من المتوقع"]
[null,null,null,null,null,null,null,null,null,0,"أقل من المتوقع"]
[null,null,null,null,null,null,null,null,null,0,"أقل من المتوقع"]
[null,null,null,null,null,null,null,null,null,0,"أقل من المتوقع"]
[null,null,null,null,null,null,null,null,null,0,"أقل من المتوقع"]
[null,null,null,null,null,null,null,null,null,0,"أقل من المتوقع"]
[null,null,null,null,null,null,null,null,null,0,"أقل من المتوقع"]
[null,null,null,null,null,null,null,null,null,0,"أقل من المتوقع"]
[null,null,null,null,null,null,null,null,null,0,"أقل من المتوقع"]
[null,null,null,null,null,null,null,null,null,0,"أقل من المتوقع"]
[null,null,null,null,null,null,null,null,null,0,"أقل من المتوقع"]
[null,null,null,null,null,null,null,null,null,0,"أقل من المتوقع"]
[null,null,null,null,null,null,null,null,null,0,"أقل من المتوقع"]
[null,null,null,null,null,null,null,null,null,0,"أقل من المتوقع"]
[null,null,null,null,null,null,null,null,null,0,"أقل من المتوقع"]
[null,null,null,null,null,null,null,null,null,0,"أقل من المتوقع"]
[null,null,null,null,null,null,null,null,null,0,"أقل من المتوقع"]
[null,null,null,null,null,null,null,null,null,0,"أقل من المتوقع"]
[null,null,null,null,null,null,null,null,null,0,"أقل من المتوقع"]
[null,null,null,null,null,null,null,null,null,0,"أقل من المتوقع"]
[null,null,null,null,null,null,null,null,null,0,"أقل من المتوقع"]
[null,null,null,null,null,null,null,null,null,0,"أقل من المتوقع"]
[null,null,null,null,null,null,null,null,null,0,"أقل من المتوقع"]
[null,null,null,null,null,null,null,null,null,0,"أقل من المتوقع"]
[null,null,null,null,null,null,null,null,null,0,"أقل من المتوقع"]
[null,null,null,null,null,null,null,null,null,0,"أقل من المتوقع"]
[null,null,null,null,null,null,null,null,null,0,"أقل من المتوقع"]
[null,null,null,null,null,null,null,null,null,0,"أقل من المتوقع"]
[null,null,null,null,null,null,null,null,null,0,"أقل من المتوقع"]
[null,null,null,null,null,null,null,null,null,0,"أقل من المتوقع"]
[null,null,null,null,null,null,null,null,null,0,"أقل من المتوقع"]
[null,null,null,null,null,null,null,null,null,{"$f":"SUM(E1085:I1085)","v":0},"أقل من المتوقع"]
[null,null,null,null,null,null,null,null,null,0,"أقل من المتوقع"]
[null,null,null,null,null,null,null,null,null,0,"أقل من المتوقع"]
[null,null,null,null,null,null,null,null,null,0,"أقل من المتوقع"]
[null,null,null,null,null,null,null,null,null,0,"أقل من المتوقع"]
[null,null,null,null,null,null,null,null,null,0,"أقل من المتوقع"]
[null,null,null,null,null,null,null,null,null,0,"أقل من المتوقع"]
[null,null,null,null,null,null,null,null,null,0,"أقل من المتوقع"]
[null,null,null,null,null,null,null,null,null,0,{"$f":"Expectations(J1093)","v":"أقل من المتوقع"}]
[null,null,null,null,null,null,null,null,null,0,"أقل من المتوقع"]
[null,null,null,null,null,null,null,null,null,0,"أقل من المتوقع"]
[null,null,null,null,null,null,null,null,null,0,"أقل من المتوقع"]
[null,null,null,null,null,null,null,null,null,0,"أقل من المتوقع"]
[null,null,null,null,null,null,null,null,null,0,"أقل من المتوقع"]
[null,null,null,null,null,null,null,null,null,0,"أقل من المتوقع"]
[null,null,null,null,null,null,null,null,null,0,"أقل من المتوقع"]
[null,null,null,null,null,null,null,null,null,0,"أقل من المتوقع"]
[null,null,null,null,null,null,null,null,null,0,"أقل من المتوقع"]
[null,null,null,null,null,null,null,null,null,0,"أقل من المتوقع"]
[null,null,null,null,null,null,null,null,null,0,"أقل من المتوقع"]
[null,null,null,null,null,null,null,null,null,0,"أقل من المتوقع"]
[null,null,null,null,null,null,null,null,null,0,"أقل من المتوقع"]
[null,null,null,null,null,null,null,null,null,0,"أقل من المتوقع"]
[null,null,null,null,null,null,null,null,null,0,"أقل من المتوقع"]
[null,null,null,null,null,null,null,null,null,0,"أقل من المتوقع"]
[null,null,null,null,null,null,null,null,null,0,"أقل من المتوقع"]
[null,null,null,null,null,null,null,null,null,0,"أقل من المتوقع"]
[null,null,null,null,null,null,null,null,null,0,"أقل من المتوقع"]
[null,null,null,null,null,null,null,null,null,0,"أقل من المتوقع"]
[null,null,null,null,null,null,null,null,null,0,"أقل من المتوقع"]
[null,null,null,null,null,null,null,null,null,0,"أقل من المتوقع"]
[null,null,null,null,null,null,null,null,null,0,"أقل من المتوقع"]
[null,null,null,null,null,null,null,null,null,0,"أقل من المتوقع"]
[null,null,null,null,null,null,null,null,null,0,"أقل من المتوقع"]
[null,null,null,null,null,null,null,null,null,0,"أقل من المتوقع"]
[null,null,null,null,null,null,null,null,null,0,"أقل من المتوقع"]
[null,null,null,null,null,null,null,null,null,0,"أقل من المتوقع"]
[null,null,null,null,null,null,null,null,null,0,"أقل من المتوقع"]
[null,null,null,null,null,null,null,null,null,0,"أقل من المتوقع"]
[null,null,null,null,null,null,null,null,null,0,"أقل من المتوقع"]
[null,null,null,null,null,null,null,null,null,0,"أقل من المتوقع"]
[null,null,null,null,null,null,null,null,null,0,"أقل من المتوقع"]
[null,null,null,null,null,null,null,null,null,0,"أقل من المتوقع"]
[null,null,null,null,null,null,null,null,null,0,"أقل من المتوقع"]
[null,null,null,null,null,null,null,null,null,0,"أقل من المتوقع"]
[null,null,null,null,null,null,null,null,null,0,"أقل من المتوقع"]
[null,null,null,null,null,null,null,null,null,0,"أقل من المتوقع"]
[null,null,null,null,null,null,null,null,null,0,"أقل من المتوقع"]
[null,null,null,null,null,null,null,null,null,0,"أقل من المتوقع"]
[null,null,null,null,null,null,null,null,null,0,"أقل من المتوقع"]
[null,null,null,null,null,null,null,null,null,0,"أقل من المتوقع"]
[null,null,null,null,null,null,null,null,null,0,"أقل من المتوقع"]
[null,null,null,null,null,null,null,null,null,0,"أقل من المتوقع"]
[null,null,null,null,null,null,null,null,null,0,"أقل من المتوقع"]
[null,null,null,null,null,null,null,null,null,0,"أقل من المتوقع"]
[null,null,null,null,null,null,null,null,null,0,"أقل من المتوقع"]
[null,null,null,null,null,null,null,null,null,0,"أقل من المتوقع"]
[null,null,null,null,null,null,null,null,null,0,"أقل من المتوقع"]
[null,null,null,null,null,null,null,null,null,0,"أقل من المتوقع"]
[null,null,null,null,null,null,null,null,null,0,"أقل من المتوقع"]
[null,null,null,null,null,null,null,null,null,0,"أقل من المتوقع"]
[null,null,null,null,null,null,null,null,null,0,"أقل من المتوقع"]
[null,null,null,null,null,null,null,null,null,0,"أقل من المتوقع"]
[null,null,null,null,null,null,null,null,null,0,"أقل من المتوقع"]
[null,null,null,null,null,null,null,null,null,{"$f":"SUM(E1149:I1149)","v":0},"أقل من المتوقع"]
[null,null,null,null,null,null,null,null,null,0,"أقل من المتوقع"]
[null,null,null,null,null,null,null,null,null,0,"أقل من المتوقع"]
[null,null,null,null,null,null,null,null,null,0,"أقل من المتوقع"]
[null,null,null,null,null,null,null,null,null,0,"أقل من المتوقع"]
[null,null,null,null,null,null,null,null,null,0,"أقل من المتوقع"]
[null,null,null,null,null,null,null,null,null,0,"أقل من المتوقع"]
[null,null,null,null,null,null,null,null,null,0,"أقل من المتوقع"]
[null,null,null,null,null,null,null,null,null,0,{"$f":"Expectations(J1157)","v":"أقل من المتوقع"}]
[null,null,null,null,null,null,null,null,null,0,"أقل من المتوقع"]
[null,null,null,null,null,null,null,null,null,0,"أقل من المتوقع"]
[null,null,null,null,null,null,null,null,null,0,"أقل من المتوقع"]
[null,null,null,null,null,null,null,null,null,0,"أقل من المتوقع"]
[null,null,null,null,null,null,null,null,null,0,"أقل من المتوقع"]
[null,null,null,null,null,null,null,null,null,0,"أقل من المتوقع"]
[null,null,null,null,null,null,null,null,null,0,"أقل من المتوقع"]
[null,null,null,null,null,null,null,null,null,0,"أقل من المتوقع"]
[null,null,null,null,null,null,null,null,null,0,"أقل من المتوقع"]
[null,null,null,null,null,null,null,null,null,0,"أقل من المتوقع"]
[null,null,null,null,null,null,null,null,null,0,"أقل من المتوقع"]
[null,null,null,null,null,null,null,null,null,0,"أقل من المتوقع"]
[null,null,null,null,null,null,null,null,null,0,"أقل من المتوقع"]
[null,null,null,null,null,null,null,null,null,0,"أقل من المتوقع"]
[null,null,null,null,null,null,null,null,null,0,"أقل من المتوقع"]
[null,null,null,null,null,null,null,null,null,0,"أقل من المتوقع"]
[null,null,null,null,null,null,null,null,null,0,"أقل من المتوقع"]
[null,null,null,null,null,null,null,null,null,0,"أقل من المتوقع"]
[null,null,null,null,null,null,null,null,null,0,"أقل من المتوقع"]
[null,null,null,null,null,null,null,null,null,0,"أقل من المتوقع"]
[null,null,null,null,null,null,null,null,null,0,"أقل من المتوقع"]
[null,null,null,null,null,null,null,null,null,0,"أقل من المتوقع"]
[null,null,null,null,null,null,null,null,null,0,"أقل من المتوقع"]
[null,null,null,null,null,null,null,null,null,0,"أقل من المتوقع"]
[null,null,null,null,null,null,null,null,null,0,"أقل من المتوقع"]
[null,null,null,null,null,null,null,null,null,0,"أقل من المتوقع"]
[null,null,null,null,null,null,null,null,null,0,"أقل من المتوقع"]
[null,null,null,null,null,null,null,null,null,0,"أقل من المتوقع"]
[null,null,null,null,null,null,null,null,null,0,"أقل من المتوقع"]
[null,null,null,null,null,null,null,null,null,0,"أقل من المتوقع"]
[null,null,null,null,null,null,null,null,null,0,"أقل من المتوقع"]
[null,null,null,null,null,null,null,null,null,0,"أقل من المتوقع"]
[null,null,null,null,null,null,null,null,null,0,"أقل من المتوقع"]
[null,null,null,null,null,null,null,null,null,0,"أقل من المتوقع"]
[null,null,null,null,null,null,null,null,null,0,"أقل من المتوقع"]
[null,null,null,null,null,null,null,null,null,0,"أقل من المتوقع"]
[null,null,null,null,null,null,null,null,null,0,"أقل من المتوقع"]
[null,null,null,null,null,null,null,null,null,0,"أقل من المتوقع"]
[null,null,null,null,null,null,null,null,null,0,"أقل من المتوقع"]
[null,null,null,null,null,null,null,null,null,0,"أقل من المتوقع"]
[null,null,null,null,null,null,null,null,null,0,"أقل من المتوقع"]
[null,null,null,null,null,null,null,null,null,0,"أقل من المتوقع"]
[null,null,null,null,null,null,null,null,null,0,"أقل من المتوقع"]
[null,null,null,null,null,null,null,null,null,0,"أقل من المتوقع"]
[null,null,null,null,null,null,null,null,null,0,"أقل من المتوقع"]
[null,null,null,null,null,null,null,null,null,0,"أقل من المتوقع"]
[null,null,null,null,null,null,null,null,null,0,"أقل من المتوقع"]
[null,null,null,null,null,null,null,null,null,0,"أقل من المتوقع"]
[null,null,null,null,null,null,null,null,null,0,"أقل من المتوقع"]
[null,null,null,null,null,null,null,null,null,0,"أقل من المتوقع"]
[null,null,null,null,null,null,null,null,null,0,"أقل من المتوقع"]
[null,null,null,null,null,null,null,null,null,0,"أقل من المتوقع"]
[null,null,null,null,null,null,null,null,null,0,"أقل من المتوقع"]
[null,null,null,null,null,null,null,null,null,0,"أقل من المتوقع"]
[null,null,null,null,null,null,null,null,null,0,"أقل من المتوقع"]
[null,null,null,null,null,null,null,null,null,{"$f":"SUM(E1213:I1213)","v":0},"أقل من المتوقع"]
[null,null,null,null,null,null,null,null,null,0,"أقل من المتوقع"]
[null,null,null,null,null,null,null,null,null,0,"أقل من المتوقع"]
[null,null,null,null,null,null,null,null,null,0,"أقل من المتوقع"]
[null,null,null,null,null,null,null,null,null,0,"أقل من المتوقع"]
[null,null,null,null,null,null,null,null,null,0,"أقل من المتوقع"]
[null,null,null,null,null,null,null,null,null,0,"أقل من المتوقع"]
[null,null,null,null,null,null,null,null,null,0,"أقل من المتوقع"]
[null,null,null,null,null,null,null,null,null,0,{"$f":"Expectations(J1221)","v":"أقل من المتوقع"}]
[null,null,null,null,null,null,null,null,null,0,"أقل من المتوقع"]
[null,null,null,null,null,null,null,null,null,0,"أقل من المتوقع"]
[null,null,null,null,null,null,null,null,null,0,"أقل من المتوقع"]
[null,null,null,null,null,null,null,null,null,0,"أقل من المتوقع"]
[null,null,null,null,null,null,null,null,null,0,"أقل من المتوقع"]
[null,null,null,null,null,null,null,null,null,0,"أقل من المتوقع"]
[null,null,null,null,null,null,null,null,null,0,"أقل من المتوقع"]
[null,null,null,null,null,null,null,null,null,0,"أقل من المتوقع"]
[null,null,null,null,null,null,null,null,null,0,"أقل من المتوقع"]
[null,null,null,null,null,null,null,null,null,0,"أقل من المتوقع"]
[null,null,null,null,null,null,null,null,null,0,"أقل من المتوقع"]
[null,null,null,null,null,null,null,null,null,0,"أقل من المتوقع"]
[null,null,null,null,null,null,null,null,null,0,"أقل من المتوقع"]
[null,null,null,null,null,null,null,null,null,0,"أقل من المتوقع"]
[null,null,null,null,null,null,null,null,null,0,"أقل من المتوقع"]
[null,null,null,null,null,null,null,null,null,0,"أقل من المتوقع"]
[null,null,null,null,null,null,null,null,null,0,"أقل من المتوقع"]
[null,null,null,null,null,null,null,null,null,0,"أقل من المتوقع"]
[null,null,null,null,null,null,null,null,null,0,"أقل من المتوقع"]
[null,null,null,null,null,null,null,null,null,0,"أقل من المتوقع"]
[null,null,null,null,null,null,null,null,null,0,"أقل من المتوقع"]
[null,null,null,null,null,null,null,null,null,0,"أقل من المتوقع"]
[null,null,null,null,null,null,null,null,null,0,"أقل من المتوقع"]
[null,null,null,null,null,null,null,null,null,0,"أقل من المتوقع"]
[null,null,null,null,null,null,null,null,null,0,"أقل من المتوقع"]
[null,null,null,null,null,null,null,null,null,0,"أقل من المتوقع"]
[null,null,null,null,null,null,null,null,null,0,"أقل من المتوقع"]
[null,null,null,null,null,null,null,null,null,0,"أقل من المتوقع"]
[null,null,null,null,null,null,null,null,null,0,"أقل من المتوقع"]
[null,null,null,null,null,null,null,null,null,0,"أقل من المتوقع"]
[null,null,null,null,null,null,null,null,null,0,"أقل من المتوقع"]
[null,null,null,null,null,null,null,null,null,0,"أقل من المتوقع"]
[null,null,null,null,null,null,null,null,null,0,"أقل من المتوقع"]
[null,null,null,null,null,null,null,null,null,0,"أقل من المتوقع"]
[null,null,null,null,null,null,null,null,null,0,"أقل من المتوقع"]
[null,null,null,null,null,null,null,null,null,0,"أقل من المتوقع"]
[null,null,null,null,null,null,null,null,null,0,"أقل من المتوقع"]
[null,null,null,null,null,null,null,null,null,0,"أقل من المتوقع"]
[null,null,null,null,null,null,null,null,null,0,"أقل من المتوقع"]
[null,null,null,null,null,null,null,null,null,0,"أقل من المتوقع"]
[null,null,null,null,null,null,null,null,null,0,"أقل من المتوقع"]
[null,null,null,null,null,null,null,null,null,0,"أقل من المتوقع"]
[null,null,null,null,null,null,null,null,null,0,"أقل من المتوقع"]
[null,null,null,null,null,null,null,null,null,0,"أقل من المتوقع"]
[null,null,null,null,null,null,null,null,null,0,"أقل من المتوقع"]
[null,null,null,null,null,null,null,null,null,0,"أقل من المتوقع"]
[null,null,null,null,null,null,null,null,null,0,"أقل من المتوقع"]
[null,null,null,null,null,null,null,null,null,0,"أقل من المتوقع"]
[null,null,null,null,null,null,null,null,null,0,"أقل من المتوقع"]
[null,null,null,null,null,null,null,null,null,0,"أقل من المتوقع"]
[null,null,null,null,null,null,null,null,null,0,"أقل من المتوقع"]
[null,null,null,null,null,null,null,null,null,0,"أقل من المتوقع"]
[null,null,null,null,null,null,null,null,null,0,"أقل من المتوقع"]
[null,null,null,null,null,null,null,null,null,0,"أقل من المتوقع"]
[null,null,null,null,null,null,null,null,null,0,"أقل من المتوقع"]
[null,null,null,null,null,null,null,null,null,{"$f":"SUM(E1277:I1277)","v":0},"أقل من المتوقع"]
[null,null,null,null,null,null,null,null,null,0,"أقل من المتوقع"]
[null,null,null,null,null,null,null,null,null,0,"أقل من المتوقع"]
[null,null,null,null,null,null,null,null,null,0,"أقل من المتوقع"]
[null,null,null,null,null,null,null,null,null,0,"أقل من المتوقع"]
[null,null,null,null,null,null,null,null,null,0,"أقل من المتوقع"]
[null,null,null,null,null,null,null,null,null,0,"أقل من المتوقع"]
[null,null,null,null,null,null,null,null,null,0,"أقل من المتوقع"]
[null,null,null,null,null,null,null,null,null,0,{"$f":"Expectations(J1285)","v":"أقل من المتوقع"}]
[null,null,null,null,null,null,null,null,null,0,"أقل من المتوقع"]
[null,null,null,null,null,null,null,null,null,0,"أقل من المتوقع"]
[null,null,null,null,null,null,null,null,null,0,"أقل من المتوقع"]
[null,null,null,null,null,null,null,null,null,0,"أقل من المتوقع"]
[null,null,null,null,null,null,null,null,null,0,"أقل من المتوقع"]
[null,null,null,null,null,null,null,null,null,0,"أقل من المتوقع"]
[null,null,null,null,null,null,null,null,null,0,"أقل من المتوقع"]
[null,null,null,null,null,null,null,null,null,0,"أقل من المتوقع"]
[null,null,null,null,null,null,null,null,null,0,"أقل من المتوقع"]
[null,null,null,null,null,null,null,null,null,0,"أقل من المتوقع"]
[null,null,null,null,null,null,null,null,null,0,"أقل من المتوقع"]
[null,null,null,null,null,null,null,null,null,0,"أقل من المتوقع"]
[null,null,null,null,null,null,null,null,null,0,"أقل من المتوقع"]
[null,null,null,null,null,null,null,null,null,0,"أقل من المتوقع"]
[null,null,null,null,null,null,null,null,null,0,"أقل من المتوقع"]
[null,null,null,null,null,null,null,null,null,0,"أقل من المتوقع"]
[null,null,null,null,null,null,null,null,null,0,"أقل من المتوقع"]
[null,null,null,null,null,null,null,null,null,0,"أقل من المتوقع"]
[null,null,null,null,null,null,null,null,null,0,"أقل من المتوقع"]
[null,null,null,null,null,null,null,null,null,0,"أقل من المتوقع"]
[null,null,null,null,null,null,null,null,null,0,"أقل من المتوقع"]
[null,null,null,null,null,null,null,null,null,0,"أقل من المتوقع"]
[null,null,null,null,null,null,null,null,null,0,"أقل من المتوقع"]
[null,null,null,null,null,null,null,null,null,0,"أقل من المتوقع"]
[null,null,null,null,null,null,null,null,null,0,"أقل من المتوقع"]
[null,null,null,null,null,null,null,null,null,0,"أقل من المتوقع"]
[null,null,null,null,null,null,null,null,null,0,"أقل من المتوقع"]
[null,null,null,null,null,null,null,null,null,0,"أقل من المتوقع"]
[null,null,null,null,null,null,null,null,null,0,"أقل من المتوقع"]
[null,null,null,null,null,null,null,null,null,0,"أقل من المتوقع"]
[null,null,null,null,null,null,null,null,null,0,"أقل من المتوقع"]
[null,null,null,null,null,null,null,null,null,0,"أقل من المتوقع"]
[null,null,null,null,null,null,null,null,null,0,"أقل من المتوقع"]
[null,null,null,null,null,null,null,null,null,0,"أقل من المتوقع"]
[null,null,null,null,null,null,null,null,null,0,"أقل من المتوقع"]
[null,null,null,null,null,null,null,null,null,0,"أقل من المتوقع"]
[null,null,null,null,null,null,null,null,null,0,"أقل من المتوقع"]
[null,null,null,null,null,null,null,null,null,0,"أقل من المتوقع"]
[null,null,null,null,null,null,null,null,null,0,"أقل من المتوقع"]
[null,null,null,null,null,null,null,null,null,0,"أقل من المتوقع"]
[null,null,null,null,null,null,null,null,null,0,"أقل من المتوقع"]
[null,null,null,null,null,null,null,null,null,0,"أقل من المتوقع"]
[null,null,null,null,null,null,null,null,null,0,"أقل من المتوقع"]
[null,null,null,null,null,null,null,null,null,0,"أقل من المتوقع"]
[null,null,null,null,null,null,null,null,null,0,"أقل من المتوقع"]
[null,null,null,null,null,null,null,null,null,0,"أقل من المتوقع"]
[null,null,null,null,null,null,null,null,null,0,"أقل من المتوقع"]
[null,null,null,null,null,null,null,null,null,0,"أقل من المتوقع"]
[null,null,null,null,null,null,null,null,null,0,"أقل من المتوقع"]
[null,null,null,null,null,null,null,null,null,0,"أقل من المتوقع"]
[null,null,null,null,null,null,null,null,null,0,"أقل من المتوقع"]
[null,null,null,null,null,null,null,null,null,0,"أقل من المتوقع"]
[null,null,null,null,null,null,null,null,null,0,"أقل من المتوقع"]
[null,null,null,null,null,null,null,null,null,0,"أقل من المتوقع"]
[null,null,null,null,null,null,null,null,null,0,"أقل من المتوقع"]
[null,null,null,null,null,null,null,null,null,{"$f":"SUM(E1341:I1341)","v":0},"أقل من المتوقع"]
[null,null,null,null,null,null,null,null,null,0,"أقل من المتوقع"]
[null,null,null,null,null,null,null,null,null,0,"أقل من المتوقع"]
[null,null,null,null,null,null,null,null,null,0,"أقل من المتوقع"]
[null,null,null,null,null,null,null,null,null,0,"أقل من المتوقع"]
[null,null,null,null,null,null,null,null,null,0,"أقل من المتوقع"]
[null,null,null,null,null,null,null,null,null,0,"أقل من المتوقع"]
[null,null,null,null,null,null,null,null,null,0,"أقل من المتوقع"]
[null,null,null,null,null,null,null,null,null,0,{"$f":"Expectations(J1349)","v":"أقل من المتوقع"}]
[null,null,null,null,null,null,null,null,null,0,"أقل من المتوقع"]
[null,null,null,null,null,null,null,null,null,0,"أقل من المتوقع"]
[null,null,null,null,null,null,null,null,null,0,"أقل من المتوقع"]
[null,null,null,null,null,null,null,null,null,0,"أقل من المتوقع"]
[null,null,null,null,null,null,null,null,null,0,"أقل من المتوقع"]
[null,null,null,null,null,null,null,null,null,0,"أقل من المتوقع"]
[null,null,null,null,null,null,null,null,null,0,"أقل من المتوقع"]
[null,null,null,null,null,null,null,null,null,0,"أقل من المتوقع"]
[null,null,null,null,null,null,null,null,null,0,"أقل من المتوقع"]
[null,null,null,null,null,null,null,null,null,0,"أقل من المتوقع"]
[null,null,null,null,null,null,null,null,null,0,"أقل من المتوقع"]
[null,null,null,null,null,null,null,null,null,0,"أقل من المتوقع"]
[null,null,null,null,null,null,null,null,null,0,"أقل من المتوقع"]
[null,null,null,null,null,null,null,null,null,0,"أقل من المتوقع"]
[null,null,null,null,null,null,null,null,null,0,"أقل من المتوقع"]
[null,null,null,null,null,null,null,null,null,0,"أقل من المتوقع"]
[null,null,null,null,null,null,null,null,null,0,"أقل من المتوقع"]
[null,null,null,null,null,null,null,null,null,0,"أقل من المتوقع"]
[null,null,null,null,null,null,null,null,null,0,"أقل من المتوقع"]
[null,null,null,null,null,null,null,null,null,0,"أقل من المتوقع"]
[null,null,null,null,null,null,null,null,null,0,"أقل من المتوقع"]
[null,null,null,null,null,null,null,null,null,0,"أقل من المتوقع"]
[null,null,null,null,null,null,null,null,null,0,"أقل من المتوقع"]
[null,null,null,null,null,null,null,null,null,0,"أقل من المتوقع"]
[null,null,null,null,null,null,null,null,null,0,"أقل من المتوقع"]
[null,null,null,null,null,null,null,null,null,0,"أقل من المتوقع"]
[null,null,null,null,null,null,null,null,null,0,"أقل من المتوقع"]
[null,null,null,null,null,null,null,null,null,0,"أقل من المتوقع"]
[null,null,null,null,null,null,null,null,null,0,"أقل من المتوقع"]
[null,null,null,null,null,null,null,null,null,0,"أقل من المتوقع"]
[null,null,null,null,null,null,null,null,null,0,"أقل من المتوقع"]
[null,null,null,null,null,null,null,null,null,0,"أقل من المتوقع"]
[null,null,null,null,null,null,null,null,null,0,"أقل من المتوقع"]
[null,null,null,null,null,null,null,null,null,0,"أقل من المتوقع"]
[null,null,null,null,null,null,null,null,null,0,"أقل من المتوقع"]
[null,null,null,null,null,null,null,null,null,0,"أقل من المتوقع"]
[null,null,null,null,null,null,null,null,null,0,"أقل من المتوقع"]
[null,null,null,null,null,null,null,null,null,0,"أقل من المتوقع"]
[null,null,null,null,null,null,null,null,null,0,"أقل من المتوقع"]
[null,null,null,null,null,null,null,null,null,0,"أقل من المتوقع"]
[null,null,null,null,null,null,null,null,null,0,"أقل من المتوقع"]
[null,null,null,null,null,null,null,null,null,0,"أقل من المتوقع"]
[null,null,null,null,null,null,null,null,null,0,"أقل من المتوقع"]
[null,null,null,null,null,null,null,null,null,0,"أقل من المتوقع"]
[null,null,null,null,null,null,null,null,null,0,"أقل من المتوقع"]
[null,null,null,null,null,null,null,null,null,0,"أقل من المتوقع"]
[null,null,null,null,null,null,null,null,null,0,"أقل من المتوقع"]
[null,null,null,null,null,null,null,null,null,0,"أقل من المتوقع"]
[null,null,null,null,null,null,null,null,null,0,"أقل من المتوقع"]
[null,null,null,null,null,null,null,null,null,0,"أقل من المتوقع"]
[null,null,null,null,null,null,null,null,null,0,"أقل من المتوقع"]
[null,null,null,null,null,null,null,null,null,0,"أقل من المتوقع"]
[null,null,null,null,null,null,null,null,null,0,"أقل من المتوقع"]
[null,null,null,null,null,null,null,null,null,0,"أقل من المتوقع"]
[null,null,null,null,null,null,null,null,null,0,"أقل من المتوقع"]
[null,null,null,null,null,null,null,null,null,{"$f":"SUM(E1405:I1405)","v":0},"أقل من المتوقع"]
[null,null,null,null,null,null,null,null,null,0,"أقل من المتوقع"]
[null,null,null,null,null,null,null,null,null,0,"أقل من المتوقع"]
[null,null,null,null,null,null,null,null,null,0,"أقل من المتوقع"]
[null,null,null,null,null,null,null,null,null,0,"أقل من المتوقع"]
[null,null,null,null,null,null,null,null,null,0,"أقل من المتوقع"]
[null,null,null,null,null,null,null,null,null,0,"أقل من المتوقع"]
[null,null,null,null,null,null,null,null,null,0,"أقل من المتوقع"]
[null,null,null,null,null,null,null,null,null,0,{"$f":"Expectations(J1413)","v":"أقل من المتوقع"}]
[null,null,null,null,null,null,null,null,null,0,"أقل من المتوقع"]
[null,null,null,null,null,null,null,null,null,0,"أقل من المتوقع"]
[null,null,null,null,null,null,null,null,null,0,"أقل من المتوقع"]
[null,null,null,null,null,null,null,null,null,0,"أقل من المتوقع"]
[null,null,null,null,null,null,null,null,null,0,"أقل من المتوقع"]
[null,null,null,null,null,null,null,null,null,0,"أقل من المتوقع"]
[null,null,null,null,null,null,null,null,null,0,"أقل من المتوقع"]
[null,null,null,null,null,null,null,null,null,0,"أقل من المتوقع"]
[null,null,null,null,null,null,null,null,null,0,"أقل من المتوقع"]
[null,null,null,null,null,null,null,null,null,0,"أقل من المتوقع"]
[null,null,null,null,null,null,null,null,null,0,"أقل من المتوقع"]
[null,null,null,null,null,null,null,null,null,0,"أقل من المتوقع"]
[null,null,null,null,null,null,null,null,null,0,"أقل من المتوقع"]
[null,null,null,null,null,null,null,null,null,0,"أقل من المتوقع"]
[null,null,null,null,null,null,null,null,null,0,"أقل من المتوقع"]
[null,null,null,null,null,null,null,null,null,0,"أقل من المتوقع"]
[null,null,null,null,null,null,null,null,null,0,"أقل من المتوقع"]
[null,null,null,null,null,null,null,null,null,0,"أقل من المتوقع"]
[null,null,null,null,null,null,null,null,null,0,"أقل من المتوقع"]
[null,null,null,null,null,null,null,null,null,0,"أقل من المتوقع"]
[null,null,null,null,null,null,null,null,null,0,"أقل من المتوقع"]
[null,null,null,null,null,null,null,null,null,0,"أقل من المتوقع"]
[null,null,null,null,null,null,null,null,null,0,"أقل من المتوقع"]
[null,null,null,null,null,null,null,null,null,0,"أقل من المتوقع"]
[null,null,null,null,null,null,null,null,null,0,"أقل من المتوقع"]
[null,null,null,null,null,null,null,null,null,0,"أقل من المتوقع"]
[null,null,null,null,null,null,null,null,null,0,"أقل من المتوقع"]
[null,null,null,null,null,null,null,null,null,0,"أقل من المتوقع"]
[null,null,null,null,null,null,null,null,null,0,"أقل من المتوقع"]
[null,null,null,null,null,null,null,null,null,0,"أقل من المتوقع"]
[null,null,null,null,null,null,null,null,null,0,"أقل من المتوقع"]
[null,null,null,null,null,null,null,null,null,0,"أقل من المتوقع"]
[null,null,null,null,null,null,null,null,null,0,"أقل من المتوقع"]
[null,null,null,null,null,null,null,null,null,0,"أقل من المتوقع"]
[null,null,null,null,null,null,null,null,null,0,"أقل من المتوقع"]
[null,null,null,null,null,null,null,null,null,0,"أقل من المتوقع"]
[null,null,null,null,null,null,null,null,null,0,"أقل من المتوقع"]
[null,null,null,null,null,null,null,null,null,0,"أقل من المتوقع"]
[null,null,null,null,null,null,null,null,null,0,"أقل من المتوقع"]
[null,null,null,null,null,null,null,null,null,0,"أقل من المتوقع"]
[null,null,null,null,null,null,null,null,null,0,"أقل من المتوقع"]
[null,null,null,null,null,null,null,null,null,0,"أقل من المتوقع"]
[null,null,null,null,null,null,null,null,null,0,"أقل من المتوقع"]
[null,null,null,null,null,null,null,null,null,0,"أقل من المتوقع"]
[null,null,null,null,null,null,null,null,null,0,"أقل من المتوقع"]
[null,null,null,null,null,null,null,null,null,0,"أقل من المتوقع"]
[null,null,null,null,null,null,null,null,null,0,"أقل من المتوقع"]
[null,null,null,null,null,null,null,null,null,0,"أقل من المتوقع"]
[null,null,null,null,null,null,null,null,null,0,"أقل من المتوقع"]
[null,null,null,null,null,null,null,null,null,0,"أقل من المتوقع"]
[null,null,null,null,null,null,null,null,null,0,"أقل من المتوقع"]
[null,null,null,null,null,null,null,null,null,0,"أقل من المتوقع"]
[null,null,null,null,null,null,null,null,null,0,"أقل من المتوقع"]
[null,null,null,null,null,null,null,null,null,0,"أقل من المتوقع"]
[null,null,null,null,null,null,null,null,null,0,"أقل من المتوقع"]
[null,null,null,null,null,null,null,null,null,{"$f":"SUM(E1469:I1469)","v":0},"أقل من المتوقع"]
[null,null,null,null,null,null,null,null,null,0,"أقل من المتوقع"]
[null,null,null,null,null,null,null,null,null,0,"أقل من المتوقع"]
[null,null,null,null,null,null,null,null,null,0,"أقل من المتوقع"]
[null,null,null,null,null,null,null,null,null,0,"أقل من المتوقع"]
[null,null,null,null,null,null,null,null,null,0,"أقل من المتوقع"]
[null,null,null,null,null,null,null,null,null,0,"أقل من المتوقع"]
[null,null,null,null,null,null,null,null,null,0,"أقل من المتوقع"]
[null,null,null,null,null,null,null,null,null,0,{"$f":"Expectations(J1477)","v":"أقل من المتوقع"}]
[null,null,null,null,null,null,null,null,null,0,"أقل من المتوقع"]
[null,null,null,null,null,null,null,null,null,0,"أقل من المتوقع"]
[null,null,null,null,null,null,null,null,null,0,"أقل من المتوقع"]
[null,null,null,null,null,null,null,null,null,0,"أقل من المتوقع"]
[null,null,null,null,null,null,null,null,null,0,"أقل من المتوقع"]
[null,null,null,null,null,null,null,null,null,0,"أقل من المتوقع"]
[null,null,null,null,null,null,null,null,null,0,"أقل من المتوقع"]
[null,null,null,null,null,null,null,null,null,0,"أقل من المتوقع"]
[null,null,null,null,null,null,null,null,null,0,"أقل من المتوقع"]
[null,null,null,null,null,null,null,null,null,0,"أقل من المتوقع"]
[null,null,null,null,null,null,null,null,null,0,"أقل من المتوقع"]
[null,null,null,null,null,null,null,null,null,0,"أقل من المتوقع"]
[null,null,null,null,null,null,null,null,null,0,"أقل من المتوقع"]
[null,null,null,null,null,null,null,null,null,0,"أقل من المتوقع"]
[null,null,null,null,null,null,null,null,null,0,"أقل من المتوقع"]
[null,null,null,null,null,null,null,null,null,0,"أقل من المتوقع"]
[null,null,null,null,null,null,null,null,null,0,"أقل من المتوقع"]
[null,null,null,null,null,null,null,null,null,0,"أقل من المتوقع"]
[null,null,null,null,null,null,null,null,null,0,"أقل من المتوقع"]
[null,null,null,null,null,null,null,null,null,0,"أقل من المتوقع"]
[null,null,null,null,null,null,null,null,null,0,"أقل من المتوقع"]
[null,null,null,null,null,null,null,null,null,0,"أقل من المتوقع"]
[null,null,null,null,null,null,null,null,null,0,"أقل من المتوقع"]

{"sheet":"المقياس المتدرج","index":1,"n_rows":11,"n_cols":4,"rows_kept":11,"cut":false,"hidden":false,"merged":[[4,0,5,2]]}
[]
[]
[]
[]
["المطلوب عمله"]
[]
["المجموع\n100","المقياس","اللون"]
["100 من 85  إلى","يفوق التوقعات",null,"أزرق"]
["  من 65  إلى أقل من  85","يلبى التوقعات",null,"أخضر"]
["  من 50  إلى أقل من 60","يلبى التوقعات أحيانا",null,"أصفر"]
["  من 1  إلى أقل من 50","أقل من المتوقع",null,"أحمر"]